Workbook

Sheet الصفحة الرئيسية
M15: بيــــانات البيــــــــــع | S15: Open 3D map tour
M26: تحليل المحافظات | S26: تحليل العملاء

Sheet بيانات البيع (hidden)
A1: إسم العميل | B1: المنطقة | C1: المحافظة | D1: الدولة | E1: السعر
A2: عميل 1 | B2: سوهاج | C2: سوهاج | D2: مصر | E2: 525.2
A3: عميل 2 | B3: القصر العينى | C3: القاهرة | D3: مصر | E3: 65
A4: عميل 3 | B4: القصر العينى | C4: القاهرة | D4: مصر | E4: 1100
A5: عميل 4 | B5: القصر العينى | C5: القاهرة | D5: مصر | E5: 150
A6: عميل 5 | B6: ميت غمر | C6: الدقهلية | D6: مصر | E6: 900
A7: عميل 6 | B7: المحلة الكبرى | C7: الغربية | D7: مصر | E7: 1025
A8: عميل 7 | B8: أسيوط | C8: أسيوط | D8: مصر | E8: 5840
A9: عميل 8 | B9: القاهرة | C9: القاهرة | D9: مصر | E9: 360
A10: عميل 9 | B10: المطرية | C10: الجيزة | D10: مصر | E10: 150
A11: عميل 10 | B11: مستشفى الشرق | C11: الجيزة | D11: مصر | E11: 225
A12: عميل 11 | B12: القصر العينى | C12: القاهرة | D12: مصر | E12: 760
A13: عميل 12 | B13: القصر العينى | C13: القاهرة | D13: مصر | E13: 1780
A14: عميل 13 | B14: القصر العينى | C14: القاهرة | D14: مصر | E14: 580
A15: عميل 14 | B15: مساكن الشروق | C15: القاهرة | D15: مصر | E15: 520
A16: عميل 15 | B16: الجيزة | C16: الجيزة | D16: مصر | E16: 450
A17: عميل 16 | B17: القصر العينى | C17: القاهرة | D17: مصر | E17: 1300
A18: عميل 17 | B18: المنيا | C18: المنيا | D18: مصر | E18: 3300
A19: عميل 18 | B19: القصر العينى | C19: القاهرة | D19: مصر | E19: 990
A20: عميل 19 | B20: القصر العينى | C20: القاهرة | D20: مصر | E20: 320
A21: عميل 20 | B21: القصر العينى | C21: القاهرة | D21: مصر | E21: 600
A22: عميل 21 | B22: القصر العينى | C22: القاهرة | D22: مصر | E22: 240
A23: عميل 22 | B23: القاهرة | C23: القاهرة | D23: مصر | E23: 390
A24: عميل 23 | B24: القصر العينى | C24: القاهرة | D24: مصر | E24: 150
A25: عميل 24 | B25: الهرم | C25: الجيزة | D25: مصر | E25: 1900
A26: عميل 25 | B26: القصر العينى | C26: القاهرة | D26: مصر | E26: 500
A27: عميل 26 | B27: وسط البلد | C27: القاهرة | D27: مصر | E27: 0
A28: عميل 27 | B28: وسط البلد | C28: القاهرة | D28: مصر | E28: 456
A29: عميل 28 | B29: كفر الشيخ | C29: كفر الشيخ | D29: مصر | E29: 300
A30: عميل 29 | B30: الجيزة | C30: الجيزة | D30: مصر | E30: 295
A31: عميل 30 | B31: القصر العينى | C31: القاهرة | D31: مصر | E31: 90
A32: عميل 31 | B32: أبو غالب | C32: الجيزة | D32: مصر | E32: 225
A33: عميل 32 | B33: القصر العينى | C33: القاهرة | D33: مصر | E33: 1250
A34: عميل 33 | B34: القصر العينى | C34: القاهرة | D34: مصر | E34: 1000
A35: عميل 34 | B35: الشيخ زايد | C35: القاهرة | D35: مصر | E35: 1100
A36: عميل 35 | B36: حلوان | C36: الجيزة | D36: مصر | E36: 2375
A37: عميل 36 | B37: حلوان | C37: الجيزة | D37: مصر | E37: 770
A38: عميل 37 | B38: القصر العينى | C38: القاهرة | D38: مصر | E38: 250
A39: عميل 38 | B39: المعادى | C39: القاهرة | D39: مصر | E39: 500
A40: عميل 39 | B40: القصر العينى | C40: القاهرة | D40: مصر | E40: 4000
A41: عميل 40 | B41: القصر العينى | C41: القاهرة | D41: مصر | E41: 70
A42: عميل 41 | B42: القصر العينى | C42: القاهرة | D42: مصر | E42: 1125
A43: عميل 42 | B43: القصر العينى | C43: القاهرة | D43: مصر | E43: 3000
A44: عميل 43 | B44: المقطم | C44: القاهرة | D44: مصر | E44: 70
A45: عميل 44 | B45: بنى سويف | C45: بنى سويف | D45: مصر | E45: 555
A46: عميل 45 | B46: المعادى | C46: القاهرة | D46: مصر | E46: 3360
A47: عميل 46 | B47: القصر العينى | C47: القاهرة | D47: مصر | E47: 980
A48: عميل 47 | B48: القصر العينى | C48: القاهرة | D48: مصر | E48: 600
A49: عميل 48 | B49: سوهاج | C49: سوهاج | D49: مصر | E49: 340
A50: عميل 49 | B50: القصر العينى | C50: القاهرة | D50: مصر | E50: 22
A51: عميل 50 | B51: القصر العينى | C51: القاهرة | D51: مصر | E51: 325
A52: عميل 51 | B52: القصر العينى | C52: القاهرة | D52: مصر | E52: 60
A53: عميل 52 | B53: القصر العينى | C53: القاهرة | D53: مصر | E53: 1500
A54: عميل 53 | B54: شبرا مصر | C54: القاهرة | D54: مصر | E54: 70
A55: عميل 54 | B55: اسوان | C55: اسوان | D55: مصر | E55: 155
A56: عميل 55 | B56: مدينة نصر | C56: القاهرة | D56: مصر | E56: 500
A57: عميل 56 | B57: القاهرة | C57: القاهرة | D57: مصر | E57: 325
A58: عميل 57 | B58: القصر العينى | C58: القاهرة | D58: مصر | E58: 1950
A59: عميل 58 | B59: القصر العينى | C59: القاهرة | D59: مصر | E59: 400
A60: عميل 59 | B60: البحيرة | C60: البحيرة | D60: مصر | E60: 1200
A61: عميل 60 | B61: بنى سويف | C61: بنى سويف | D61: مصر | E61: 4475
A62: عميل 61 | B62: بنى سويف | C62: بنى سويف | D62: مصر | E62: 2450
A63: عميل 62 | B63: شبرا مصر | C63: القاهرة | D63: مصر | E63: 1295
A64: عميل 63 | B64: القصر العينى | C64: القاهرة | D64: مصر | E64: 375
A65: عميل 64 | B65: طها | C65: سوهاج | D65: مصر | E65: 1880
A66: عميل 65 | B66: طها | C66: سوهاج | D66: مصر | E66: 450
A67: عميل 66 | B67: بنى سويف | C67: بنى سويف | D67: مصر | E67: 4400
A68: عميل 67 | B68: ارض اللواء | C68: الجيزة | D68: مصر | E68: 3300
A69: عميل 68 | B69: مدينة نصر | C69: القاهرة | D69: مصر | E69: 225
A70: عميل 69 | B70: القاهرة | C70: القاهرة | D70: مصر | E70: 250
A71: عميل 70 | B71: الفسطاط الجديدة | C71: القاهرة | D71: مصر | E71: 700
A72: عميل 71 | B72: مدينة نصر | C72: القاهرة | D72: مصر | E72: 550
A73: عميل 72 | B73: القصر العينى | C73: القاهرة | D73: مصر | E73: 375
A74: عميل 73 | B74: القصر العينى | C74: القاهرة | D74: مصر | E74: 570
A75: عميل 74 | B75: القصر العينى | C75: القاهرة | D75: مصر | E75: 342
A76: عميل 75 | B76: الإسكندرية | C76: الإسكندرية | D76: مصر | E76: 3500
A77: عميل 76 | B77: المنيا | C77: المنيا | D77: مصر | E77: 1050
A78: عميل 77 | B78: حلوان | C78: الجيزة | D78: مصر | E78: 1150
A79: عميل 78 | B79: أشمون | C79: المنوفية | D79: مصر | E79: 250
A80: عميل 79 | B80: دار السلام | C80: القاهرة | D80: مصر | E80: 125
A81: عميل 80 | B81: القصر العينى | C81: القاهرة | D81: مصر | E81: 5
A82: عميل 81 | B82: القصر العينى | C82: القاهرة | D82: مصر | E82: 1750
A83: عميل 82 | B83: كرداسة | C83: الجيزة | D83: مصر | E83: 300
A84: عميل 83 | B84: القصر العينى | C84: القاهرة | D84: مصر | E84: 6450
A85: عميل 84 | B85: سوهاج | C85: سوهاج | D85: مصر | E85: 288
A86: عميل 85 | B86: القصر العينى | C86: القاهرة | D86: مصر | E86: 875
A87: عميل 86 | B87: القصر العينى | C87: القاهرة | D87: مصر | E87: 340
A88: عميل 87 | B88: الشيخ زايد | C88: القاهرة | D88: مصر | E88: 1500
A89: عميل 88 | B89: الأقصر | C89: الأقصر | D89: مصر | E89: 450
A90: عميل 89 | B90: فيصل | C90: الجيزة | D90: مصر | E90: 225
A91: عميل 90 | B91: القصر العينى | C91: القاهرة | D91: مصر | E91: 40
A92: عميل 91 | B92: القصر العينى | C92: القاهرة | D92: مصر | E92: 725
A93: عميل 92 | B93: المنوفية | C93: المنوفية | D93: مصر | E93: 580
A94: عميل 93 | B94: حدائق القبة | C94: القاهرة | D94: مصر | E94: 1950
A95: عميل 94 | B95: القصر العينى | C95: القاهرة | D95: مصر | E95: 75
A96: عميل 95 | B96: القصر العينى | C96: القاهرة | D96: مصر | E96: 600
A97: عميل 96 | B97: عين شمس | C97: القاهرة | D97: مصر | E97: 350
A98: عميل 97 | B98: القصر العينى | C98: القاهرة | D98: مصر | E98: 875
A99: عميل 98 | B99: القصر العينى | C99: القاهرة | D99: مصر | E99: 1400
A100: عميل 99 | B100: الجمهورية | C100: المنوفية | D100: مصر | E100: 75
A101: عميل 100 | B101: المعادى | C101: القاهرة | D101: مصر | E101: 3400
A102: عميل 101 | B102: المحلة الكبرى | C102: الغربية | D102: مصر | E102: 600
A103: عميل 102 | B103: المحلة الكبرى | C103: الغربية | D103: مصر | E103: 1250
A104: عميل 103 | B104: التجمع الخامس | C104: القاهرة | D104: مصر | E104: 325
A105: عميل 104 | B105: الإسكندرية | C105: الإسكندرية | D105: مصر | E105: 909
A106: عميل 105 | B106: القصر العينى | C106: القاهرة | D106: مصر | E106: 675
A107: عميل 106 | B107: المقطم | C107: القاهرة | D107: مصر | E107: 300
A108: عميل 107 | B108: القصر العينى | C108: القاهرة | D108: مصر | E108: 280
A109: عميل 108 | B109: امبابة | C109: الجيزة | D109: مصر | E109: 525
A110: عميل 109 | B110: القصر العينى | C110: القاهرة | D110: مصر | E110: 1050
A111: عميل 110 | B111: زهراء المعادى | C111: القاهرة | D111: مصر | E111: 300
A112: عميل 111 | B112: القصر العينى | C112: القاهرة | D112: مصر | E112: 340
A113: عميل 112 | B113: المقطم | C113: القاهرة | D113: مصر | E113: 36250
A114: عميل 113 | B114: التجمع الأول | C114: القاهرة | D114: مصر | E114: 800
A115: عميل 114 | B115: القصر العينى | C115: القاهرة | D115: مصر | E115: 300
A116: عميل 115 | B116: الدقى | C116: الجيزة | D116: مصر | E116: 150
A117: عميل 116 | B117: القصر العينى | C117: القاهرة | D117: مصر | E117: 70
A118: عميل 117 | B118: السيدة زينب | C118: القاهرة | D118: مصر | E118: 1469
A119: عميل 118 | B119: المهندسين | C119: الجيزة | D119: مصر | E119: 375
A120: عميل 119 | B120: حدائق القبة | C120: القاهرة | D120: مصر | E120: 300
A121: عميل 120 | B121: المعادى | C121: القاهرة | D121: مصر | E121: 420
A122: عميل 121 | B122: القصر العينى | C122: القاهرة | D122: مصر | E122: 1650
A123: عميل 122 | B123: القصر العينى | C123: القاهرة | D123: مصر | E123: 1300
A124: عميل 123 | B124: القصر العينى | C124: القاهرة | D124: مصر | E124: 300
A125: عميل 124 | B125: القصر العينى | C125: القاهرة | D125: مصر | E125: 10000
A126: عميل 125 | B126: المقطم | C126: القاهرة | D126: مصر | E126: 90
A127: عميل 126 | B127: القصر العينى | C127: القاهرة | D127: مصر | E127: 375
A128: عميل 127 | B128: مصر الجديدة | C128: القاهرة | D128: مصر | E128: 105
A129: عميل 128 | B129: القصر العينى | C129: القاهرة | D129: مصر | E129: 780
A130: عميل 129 | B130: أسيوط | C130: أسيوط | D130: مصر | E130: 120
A131: عميل 130 | B131: القصر العينى | C131: القاهرة | D131: مصر | E131: 20
A132: عميل 131 | B132: مدينة نصر | C132: القاهرة | D132: مصر | E132: 300
A133: عميل 132 | B133: شبرا مصر | C133: القاهرة | D133: مصر | E133: 520
A134: عميل 133 | B134: طنطا | C134: الغربية | D134: مصر | E134: 1400
A135: عميل 134 | B135: القصر العينى | C135: القاهرة | D135: مصر | E135: 6850
A136: عميل 135 | B136: القصر العينى | C136: القاهرة | D136: مصر | E136: 375
A137: عميل 136 | B137: مدينة نصر | C137: القاهرة | D137: مصر | E137: 100
A138: عميل 137 | B138: الهرم | C138: الجيزة | D138: مصر | E138: 680
A139: عميل 138 | B139: القصر العينى | C139: القاهرة | D139: مصر | E139: 175
A140: عميل 139 | B140: القصر العينى | C140: القاهرة | D140: مصر | E140: 200
A141: عميل 140 | B141: القصر العينى | C141: القاهرة | D141: مصر | E141: 200
A142: عميل 141 | B142: الشيخ زايد | C142: القاهرة | D142: مصر | E142: 300
A143: عميل 142 | B143: حدئق الاهرام | C143: القاهرة | D143: مصر | E143: 300
A144: عميل 143 | B144: مستشفى الشرق | C144: الجيزة | D144: مصر | E144: 120
A145: عميل 144 | B145: حدائق القبة | C145: القاهرة | D145: مصر | E145: 170
A146: عميل 145 | B146: القصر العينى | C146: القاهرة | D146: مصر | E146: 60
A147: عميل 146 | B147: ميت غمر | C147: الدقهلية | D147: مصر | E147: 900
A148: عميل 147 | B148: القصر العينى | C148: القاهرة | D148: مصر | E148: 80
A149: عميل 148 | B149: القصر العينى | C149: القاهرة | D149: مصر | E149: 270
A150: عميل 149 | B150: القاهرة | C150: القاهرة | D150: مصر | E150: 195
A151: عميل 150 | B151: نجع حمادى | C151: قنا | D151: مصر | E151: 800
A152: عميل 151 | B152: المعادى | C152: القاهرة | D152: مصر | E152: 225
A153: عميل 152 | B153: ديشنا | C153: قنا | D153: مصر | E153: 300
A154: عميل 153 | B154: بنى سويف | C154: بنى سويف | D154: مصر | E154: 90
A155: عميل 154 | B155: مدينة نصر | C155: القاهرة | D155: مصر | E155: 260
A156: عميل 155 | B156: القصر العينى | C156: القاهرة | D156: مصر | E156: 350
A157: عميل 156 | B157: بنى سويف | C157: بنى سويف | D157: مصر | E157: 25
A158: عميل 157 | B158: رمسيس | C158: القاهرة | D158: مصر | E158: 3250
A159: عميل 158 | B159: التجمع الأول | C159: القاهرة | D159: مصر | E159: 75
A160: عميل 159 | B160: ديشنا | C160: قنا | D160: مصر | E160: 1800
A161: عميل 160 | B161: القصر العينى | C161: القاهرة | D161: مصر | E161: 680
A162: عميل 161 | B162: القصر العينى | C162: القاهرة | D162: مصر | E162: 250
A163: عميل 162 | B163: القصر العينى | C163: القاهرة | D163: مصر | E163: 250
A164: عميل 163 | B164: القاهرة | C164: القاهرة | D164: مصر | E164: 70
A165: عميل 164 | B165: الأقصر | C165: الأقصر | D165: مصر | E165: 2100
A166: عميل 165 | B166: أبو حماد | C166: الشرقية | D166: مصر | E166: 1680
A167: عميل 166 | B167: القصر العينى | C167: القاهرة | D167: مصر | E167: 2475
A168: عميل 167 | B168: الزقازيق | C168: الشرقية | D168: مصر | E168: 390
A169: عميل 168 | B169: المنيرة | C169: القاهرة | D169: مصر | E169: 17710
A170: عميل 169 | B170: القصر العينى | C170: القاهرة | D170: مصر | E170: 1650
A171: عميل 170 | B171: فيصل | C171: الجيزة | D171: مصر | E171: 90
A172: عميل 171 | B172: المهندسين | C172: الجيزة | D172: مصر | E172: 3475
A173: عميل 172 | B173: باب اللوق | C173: القاهرة | D173: مصر | E173: 680
A174: عميل 173 | B174: القصر العينى | C174: القاهرة | D174: مصر | E174: 775
A175: عميل 174 | B175: القصر العينى | C175: القاهرة | D175: مصر | E175: 855
A176: عميل 175 | B176: الخلفاوى | C176: القاهرة | D176: مصر | E176: 1050
A177: عميل 176 | B177: أسيوط | C177: أسيوط | D177: مصر | E177: 80
A178: عميل 177 | B178: القصر العينى | C178: القاهرة | D178: مصر | E178: 200
A179: عميل 178 | B179: الشيخ زايد | C179: القاهرة | D179: مصر | E179: 1100
A180: عميل 179 | B180: مدينة نصر | C180: القاهرة | D180: مصر | E180: 660
A181: عميل 180 | B181: القصر العينى | C181: القاهرة | D181: مصر | E181: 1400
A182: عميل 181 | B182: حدائق القبة | C182: القاهرة | D182: مصر | E182: 545
A183: عميل 182 | B183: دمنهور | C183: البحيرة | D183: مصر | E183: 725
A184: عميل 183 | B184: القصر العينى | C184: القاهرة | D184: مصر | E184: 2000
A185: عميل 184 | B185: القصر العينى | C185: القاهرة | D185: مصر | E185: 540
A186: عميل 185 | B186: امبابة | C186: الجيزة | D186: مصر | E186: 375
A187: عميل 186 | B187: المهندسين | C187: الجيزة | D187: مصر | E187: 600
A188: عميل 187 | B188: العياط | C188: الجيزة | D188: مصر | E188: 180
A189: عميل 188 | B189: القصر العينى | C189: القاهرة | D189: مصر | E189: 985
A190: عميل 189 | B190: أشمون | C190: المنوفية | D190: مصر | E190: 40
A191: عميل 190 | B191: المقطم | C191: القاهرة | D191: مصر | E191: 285
A192: عميل 191 | B192: المهندسين | C192: الجيزة | D192: مصر | E192: 2100
A193: عميل 192 | B193: الهرم | C193: الجيزة | D193: مصر | E193: 280
A194: عميل 193 | B194: القصر العينى | C194: القاهرة | D194: مصر | E194: 280
A195: عميل 194 | B195: القصر العينى | C195: القاهرة | D195: مصر | E195: 1095
A196: عميل 195 | B196: المقطم | C196: القاهرة | D196: مصر | E196: 695
A197: عميل 196 | B197: مدينة نصر | C197: القاهرة | D197: مصر | E197: 35
A198: عميل 197 | B198: القصر العينى | C198: القاهرة | D198: مصر | E198: 875
A199: عميل 198 | B199: القصر العينى | C199: القاهرة | D199: مصر | E199: 145
A200: عميل 199 | B200: القصر العينى | C200: القاهرة | D200: مصر | E200: 660
... 265 more rows

Sheet 3D (hidden)
A1: إسم العميل | B1: المنطقة | C1: المحافظة | D1: الدولة | E1: المبلغ
A2: عميل 1 | B2: سوهاج | C2: سوهاج | D2: مصر | E2: 525.2
A3: عميل 2 | B3: القصر العينى | C3: القاهرة | D3: مصر | E3: 65
A4: عميل 3 | B4: القصر العينى | C4: القاهرة | D4: مصر | E4: 1100
A5: عميل 4 | B5: القصر العينى | C5: القاهرة | D5: مصر | E5: 150
A6: عميل 5 | B6: ميت غمر | C6: الدقهلية | D6: مصر | E6: 900
A7: عميل 6 | B7: المحلة الكبرى | C7: الغربية | D7: مصر | E7: 1025
A8: عميل 7 | B8: أسيوط | C8: أسيوط | D8: مصر | E8: 5840
A9: عميل 8 | B9: القاهرة | C9: القاهرة | D9: مصر | E9: 360
A10: عميل 9 | B10: المطرية | C10: الجيزة | D10: مصر | E10: 150
A11: عميل 10 | B11: مستشفى الشرق | C11: الجيزة | D11: مصر | E11: 225
A12: عميل 11 | B12: القصر العينى | C12: القاهرة | D12: مصر | E12: 760
A13: عميل 12 | B13: القصر العينى | C13: القاهرة | D13: مصر | E13: 1780
A14: عميل 13 | B14: القصر العينى | C14: القاهرة | D14: مصر | E14: 580
A15: عميل 14 | B15: مساكن الشروق | C15: القاهرة | D15: مصر | E15: 520
A16: عميل 15 | B16: الجيزة | C16: الجيزة | D16: مصر | E16: 450
A17: عميل 16 | B17: القصر العينى | C17: القاهرة | D17: مصر | E17: 1300
A18: عميل 17 | B18: المنيا | C18: المنيا | D18: مصر | E18: 3300
A19: عميل 18 | B19: القصر العينى | C19: القاهرة | D19: مصر | E19: 990
A20: عميل 19 | B20: القصر العينى | C20: القاهرة | D20: مصر | E20: 320
A21: عميل 20 | B21: القصر العينى | C21: القاهرة | D21: مصر | E21: 600
A22: عميل 21 | B22: القصر العينى | C22: القاهرة | D22: مصر | E22: 240
A23: عميل 22 | B23: القاهرة | C23: القاهرة | D23: مصر | E23: 390 | G23: أريد عند الضغط على هذه الصورة يتم فتح الخريطة تلقاياً
A24: عميل 23 | B24: القصر العينى | C24: القاهرة | D24: مصر | E24: 150
A25: عميل 24 | B25: الهرم | C25: الجيزة | D25: مصر | E25: 1900
A26: عميل 25 | B26: القصر العينى | C26: القاهرة | D26: مصر | E26: 500
A27: عميل 26 | B27: وسط البلد | C27: القاهرة | D27: مصر | E27: 0
A28: عميل 27 | B28: وسط البلد | C28: القاهرة | D28: مصر | E28: 456
A29: عميل 28 | B29: كفر الشيخ | C29: كفر الشيخ | D29: مصر | E29: 300
A30: عميل 29 | B30: الجيزة | C30: الجيزة | D30: مصر | E30: 295
A31: عميل 30 | B31: القصر العينى | C31: القاهرة | D31: مصر | E31: 90
A32: عميل 31 | B32: أبو غالب | C32: الجيزة | D32: مصر | E32: 225
A33: عميل 32 | B33: القصر العينى | C33: القاهرة | D33: مصر | E33: 1250
A34: عميل 33 | B34: القصر العينى | C34: القاهرة | D34: مصر | E34: 1000
A35: عميل 34 | B35: الشيخ زايد | C35: القاهرة | D35: مصر | E35: 1100
A36: عميل 35 | B36: حلوان | C36: الجيزة | D36: مصر | E36: 2375
A37: عميل 36 | B37: حلوان | C37: الجيزة | D37: مصر | E37: 770
A38: عميل 37 | B38: القصر العينى | C38: القاهرة | D38: مصر | E38: 250
A39: عميل 38 | B39: المعادى | C39: القاهرة | D39: مصر | E39: 500
A40: عميل 39 | B40: القصر العينى | C40: القاهرة | D40: مصر | E40: 4000
A41: عميل 40 | B41: القصر العينى | C41: القاهرة | D41: مصر | E41: 70
A42: عميل 41 | B42: القصر العينى | C42: القاهرة | D42: مصر | E42: 1125
A43: عميل 42 | B43: القصر العينى | C43: القاهرة | D43: مصر | E43: 3000
A44: عميل 43 | B44: المقطم | C44: القاهرة | D44: مصر | E44: 70
A45: عميل 44 | B45: بنى سويف | C45: بنى سويف | D45: مصر | E45: 555
A46: عميل 45 | B46: المعادى | C46: القاهرة | D46: مصر | E46: 3360
A47: عميل 46 | B47: القصر العينى | C47: القاهرة | D47: مصر | E47: 980
A48: عميل 47 | B48: القصر العينى | C48: القاهرة | D48: مصر | E48: 600
A49: عميل 48 | B49: سوهاج | C49: سوهاج | D49: مصر | E49: 340
A50: عميل 49 | B50: القصر العينى | C50: القاهرة | D50: مصر | E50: 22
A51: عميل 50 | B51: القصر العينى | C51: القاهرة | D51: مصر | E51: 325
A52: عميل 51 | B52: القصر العينى | C52: القاهرة | D52: مصر | E52: 60
A53: عميل 52 | B53: القصر العينى | C53: القاهرة | D53: مصر | E53: 1500
A54: عميل 53 | B54: شبرا مصر | C54: القاهرة | D54: مصر | E54: 70
A55: عميل 54 | B55: اسوان | C55: اسوان | D55: مصر | E55: 155
A56: عميل 55 | B56: مدينة نصر | C56: القاهرة | D56: مصر | E56: 500
A57: عميل 56 | B57: القاهرة | C57: القاهرة | D57: مصر | E57: 325
A58: عميل 57 | B58: القصر العينى | C58: القاهرة | D58: مصر | E58: 1950
A59: عميل 58 | B59: القصر العينى | C59: القاهرة | D59: مصر | E59: 400
A60: عميل 59 | B60: البحيرة | C60: البحيرة | D60: مصر | E60: 1200
A61: عميل 60 | B61: بنى سويف | C61: بنى سويف | D61: مصر | E61: 4475
A62: عميل 61 | B62: بنى سويف | C62: بنى سويف | D62: مصر | E62: 2450
A63: عميل 62 | B63: شبرا مصر | C63: القاهرة | D63: مصر | E63: 1295
A64: عميل 63 | B64: القصر العينى | C64: القاهرة | D64: مصر | E64: 375
A65: عميل 64 | B65: طها | C65: سوهاج | D65: مصر | E65: 1880
A66: عميل 65 | B66: طها | C66: سوهاج | D66: مصر | E66: 450
A67: عميل 66 | B67: بنى سويف | C67: بنى سويف | D67: مصر | E67: 4400
A68: عميل 67 | B68: ارض اللواء | C68: الجيزة | D68: مصر | E68: 3300
A69: عميل 68 | B69: مدينة نصر | C69: القاهرة | D69: مصر | E69: 225
A70: عميل 69 | B70: القاهرة | C70: القاهرة | D70: مصر | E70: 250
A71: عميل 70 | B71: الفسطاط الجديدة | C71: القاهرة | D71: مصر | E71: 700
A72: عميل 71 | B72: مدينة نصر | C72: القاهرة | D72: مصر | E72: 550
A73: عميل 72 | B73: القصر العينى | C73: القاهرة | D73: مصر | E73: 375
A74: عميل 73 | B74: القصر العينى | C74: القاهرة | D74: مصر | E74: 570
A75: عميل 74 | B75: القصر العينى | C75: القاهرة | D75: مصر | E75: 342
A76: عميل 75 | B76: الإسكندرية | C76: الإسكندرية | D76: مصر | E76: 3500
A77: عميل 76 | B77: المنيا | C77: المنيا | D77: مصر | E77: 1050
A78: عميل 77 | B78: حلوان | C78: الجيزة | D78: مصر | E78: 1150
A79: عميل 78 | B79: أشمون | C79: المنوفية | D79: مصر | E79: 250
A80: عميل 79 | B80: دار السلام | C80: القاهرة | D80: مصر | E80: 125
A81: عميل 80 | B81: القصر العينى | C81: القاهرة | D81: مصر | E81: 5
A82: عميل 81 | B82: القصر العينى | C82: القاهرة | D82: مصر | E82: 1750
A83: عميل 82 | B83: كرداسة | C83: الجيزة | D83: مصر | E83: 300
A84: عميل 83 | B84: القصر العينى | C84: القاهرة | D84: مصر | E84: 6450
A85: عميل 84 | B85: سوهاج | C85: سوهاج | D85: مصر | E85: 288
A86: عميل 85 | B86: القصر العينى | C86: القاهرة | D86: مصر | E86: 875
A87: عميل 86 | B87: القصر العينى | C87: القاهرة | D87: مصر | E87: 340
A88: عميل 87 | B88: الشيخ زايد | C88: القاهرة | D88: مصر | E88: 1500
A89: عميل 88 | B89: الأقصر | C89: الأقصر | D89: مصر | E89: 450
A90: عميل 89 | B90: فيصل | C90: الجيزة | D90: مصر | E90: 225
A91: عميل 90 | B91: القصر العينى | C91: القاهرة | D91: مصر | E91: 40
A92: عميل 91 | B92: القصر العينى | C92: القاهرة | D92: مصر | E92: 725
A93: عميل 92 | B93: المنوفية | C93: المنوفية | D93: مصر | E93: 580
A94: عميل 93 | B94: حدائق القبة | C94: القاهرة | D94: مصر | E94: 1950
A95: عميل 94 | B95: القصر العينى | C95: القاهرة | D95: مصر | E95: 75
A96: عميل 95 | B96: القصر العينى | C96: القاهرة | D96: مصر | E96: 600
A97: عميل 96 | B97: عين شمس | C97: القاهرة | D97: مصر | E97: 350
A98: عميل 97 | B98: القصر العينى | C98: القاهرة | D98: مصر | E98: 875
A99: عميل 98 | B99: القصر العينى | C99: القاهرة | D99: مصر | E99: 1400
A100: عميل 99 | B100: الجمهورية | C100: المنوفية | D100: مصر | E100: 75
A101: عميل 100 | B101: المعادى | C101: القاهرة | D101: مصر | E101: 3400
A102: عميل 101 | B102: المحلة الكبرى | C102: الغربية | D102: مصر | E102: 600
A103: عميل 102 | B103: المحلة الكبرى | C103: الغربية | D103: مصر | E103: 1250
A104: عميل 103 | B104: التجمع الخامس | C104: القاهرة | D104: مصر | E104: 325
A105: عميل 104 | B105: الإسكندرية | C105: الإسكندرية | D105: مصر | E105: 909
A106: عميل 105 | B106: القصر العينى | C106: القاهرة | D106: مصر | E106: 675
A107: عميل 106 | B107: المقطم | C107: القاهرة | D107: مصر | E107: 300
A108: عميل 107 | B108: القصر العينى | C108: القاهرة | D108: مصر | E108: 280
A109: عميل 108 | B109: امبابة | C109: الجيزة | D109: مصر | E109: 525
A110: عميل 109 | B110: القصر العينى | C110: القاهرة | D110: مصر | E110: 1050
A111: عميل 110 | B111: زهراء المعادى | C111: القاهرة | D111: مصر | E111: 300
A112: عميل 111 | B112: القصر العينى | C112: القاهرة | D112: مصر | E112: 340
A113: عميل 112 | B113: المقطم | C113: القاهرة | D113: مصر | E113: 36250
A114: عميل 113 | B114: التجمع الأول | C114: القاهرة | D114: مصر | E114: 800
A115: عميل 114 | B115: القصر العينى | C115: القاهرة | D115: مصر | E115: 300
A116: عميل 115 | B116: الدقى | C116: الجيزة | D116: مصر | E116: 150
A117: عميل 116 | B117: القصر العينى | C117: القاهرة | D117: مصر | E117: 70
A118: عميل 117 | B118: السيدة زينب | C118: القاهرة | D118: مصر | E118: 1469
A119: عميل 118 | B119: المهندسين | C119: الجيزة | D119: مصر | E119: 375
A120: عميل 119 | B120: حدائق القبة | C120: القاهرة | D120: مصر | E120: 300
A121: عميل 120 | B121: المعادى | C121: القاهرة | D121: مصر | E121: 420
A122: عميل 121 | B122: القصر العينى | C122: القاهرة | D122: مصر | E122: 1650
A123: عميل 122 | B123: القصر العينى | C123: القاهرة | D123: مصر | E123: 1300
A124: عميل 123 | B124: القصر العينى | C124: القاهرة | D124: مصر | E124: 300
A125: عميل 124 | B125: القصر العينى | C125: القاهرة | D125: مصر | E125: 10000
A126: عميل 125 | B126: المقطم | C126: القاهرة | D126: مصر | E126: 90
A127: عميل 126 | B127: القصر العينى | C127: القاهرة | D127: مصر | E127: 375
A128: عميل 127 | B128: مصر الجديدة | C128: القاهرة | D128: مصر | E128: 105
A129: عميل 128 | B129: القصر العينى | C129: القاهرة | D129: مصر | E129: 780
A130: عميل 129 | B130: أسيوط | C130: أسيوط | D130: مصر | E130: 120
A131: عميل 130 | B131: القصر العينى | C131: القاهرة | D131: مصر | E131: 20
A132: عميل 131 | B132: مدينة نصر | C132: القاهرة | D132: مصر | E132: 300
A133: عميل 132 | B133: شبرا مصر | C133: القاهرة | D133: مصر | E133: 520
A134: عميل 133 | B134: طنطا | C134: الغربية | D134: مصر | E134: 1400
A135: عميل 134 | B135: القصر العينى | C135: القاهرة | D135: مصر | E135: 6850
A136: عميل 135 | B136: القصر العينى | C136: القاهرة | D136: مصر | E136: 375
A137: عميل 136 | B137: مدينة نصر | C137: القاهرة | D137: مصر | E137: 100
A138: عميل 137 | B138: الهرم | C138: الجيزة | D138: مصر | E138: 680
A139: عميل 138 | B139: القصر العينى | C139: القاهرة | D139: مصر | E139: 175
A140: عميل 139 | B140: القصر العينى | C140: القاهرة | D140: مصر | E140: 200
A141: عميل 140 | B141: القصر العينى | C141: القاهرة | D141: مصر | E141: 200
A142: عميل 141 | B142: الشيخ زايد | C142: القاهرة | D142: مصر | E142: 300
A143: عميل 142 | B143: حدئق الاهرام | C143: القاهرة | D143: مصر | E143: 300
A144: عميل 143 | B144: مستشفى الشرق | C144: الجيزة | D144: مصر | E144: 120
A145: عميل 144 | B145: حدائق القبة | C145: القاهرة | D145: مصر | E145: 170
A146: عميل 145 | B146: القصر العينى | C146: القاهرة | D146: مصر | E146: 60
A147: عميل 146 | B147: ميت غمر | C147: الدقهلية | D147: مصر | E147: 900
A148: عميل 147 | B148: القصر العينى | C148: القاهرة | D148: مصر | E148: 80
A149: عميل 148 | B149: القصر العينى | C149: القاهرة | D149: مصر | E149: 270
A150: عميل 149 | B150: القاهرة | C150: القاهرة | D150: مصر | E150: 195
A151: عميل 150 | B151: نجع حمادى | C151: قنا | D151: مصر | E151: 800
A152: عميل 151 | B152: المعادى | C152: القاهرة | D152: مصر | E152: 225
A153: عميل 152 | B153: ديشنا | C153: قنا | D153: مصر | E153: 300
A154: عميل 153 | B154: بنى سويف | C154: بنى سويف | D154: مصر | E154: 90
A155: عميل 154 | B155: مدينة نصر | C155: القاهرة | D155: مصر | E155: 260
A156: عميل 155 | B156: القصر العينى | C156: القاهرة | D156: مصر | E156: 350
A157: عميل 156 | B157: بنى سويف | C157: بنى سويف | D157: مصر | E157: 25
A158: عميل 157 | B158: رمسيس | C158: القاهرة | D158: مصر | E158: 3250
A159: عميل 158 | B159: التجمع الأول | C159: القاهرة | D159: مصر | E159: 75
A160: عميل 159 | B160: ديشنا | C160: قنا | D160: مصر | E160: 1800
A161: عميل 160 | B161: القصر العينى | C161: القاهرة | D161: مصر | E161: 680
A162: عميل 161 | B162: القصر العينى | C162: القاهرة | D162: مصر | E162: 250
A163: عميل 162 | B163: القصر العينى | C163: القاهرة | D163: مصر | E163: 250
A164: عميل 163 | B164: القاهرة | C164: القاهرة | D164: مصر | E164: 70
A165: عميل 164 | B165: الأقصر | C165: الأقصر | D165: مصر | E165: 2100
A166: عميل 165 | B166: أبو حماد | C166: الشرقية | D166: مصر | E166: 1680
A167: عميل 166 | B167: القصر العينى | C167: القاهرة | D167: مصر | E167: 2475
A168: عميل 167 | B168: الزقازيق | C168: الشرقية | D168: مصر | E168: 390
A169: عميل 168 | B169: المنيرة | C169: القاهرة | D169: مصر | E169: 17710
A170: عميل 169 | B170: القصر العينى | C170: القاهرة | D170: مصر | E170: 1650
A171: عميل 170 | B171: فيصل | C171: الجيزة | D171: مصر | E171: 90
A172: عميل 171 | B172: المهندسين | C172: الجيزة | D172: مصر | E172: 3475
A173: عميل 172 | B173: باب اللوق | C173: القاهرة | D173: مصر | E173: 680
A174: عميل 173 | B174: القصر العينى | C174: القاهرة | D174: مصر | E174: 775
A175: عميل 174 | B175: القصر العينى | C175: القاهرة | D175: مصر | E175: 855
A176: عميل 175 | B176: الخلفاوى | C176: القاهرة | D176: مصر | E176: 1050
A177: عميل 176 | B177: أسيوط | C177: أسيوط | D177: مصر | E177: 80
A178: عميل 177 | B178: القصر العينى | C178: القاهرة | D178: مصر | E178: 200
A179: عميل 178 | B179: الشيخ زايد | C179: القاهرة | D179: مصر | E179: 1100
A180: عميل 179 | B180: مدينة نصر | C180: القاهرة | D180: مصر | E180: 660
A181: عميل 180 | B181: القصر العينى | C181: القاهرة | D181: مصر | E181: 1400
A182: عميل 181 | B182: حدائق القبة | C182: القاهرة | D182: مصر | E182: 545
A183: عميل 182 | B183: دمنهور | C183: البحيرة | D183: مصر | E183: 725
A184: عميل 183 | B184: القصر العينى | C184: القاهرة | D184: مصر | E184: 2000
A185: عميل 184 | B185: القصر العينى | C185: القاهرة | D185: مصر | E185: 540
A186: عميل 185 | B186: امبابة | C186: الجيزة | D186: مصر | E186: 375
A187: عميل 186 | B187: المهندسين | C187: الجيزة | D187: مصر | E187: 600
A188: عميل 187 | B188: العياط | C188: الجيزة | D188: مصر | E188: 180
A189: عميل 188 | B189: القصر العينى | C189: القاهرة | D189: مصر | E189: 985
A190: عميل 189 | B190: أشمون | C190: المنوفية | D190: مصر | E190: 40
A191: عميل 190 | B191: المقطم | C191: القاهرة | D191: مصر | E191: 285
A192: عميل 191 | B192: المهندسين | C192: الجيزة | D192: مصر | E192: 2100
A193: عميل 192 | B193: الهرم | C193: الجيزة | D193: مصر | E193: 280
A194: عميل 193 | B194: القصر العينى | C194: القاهرة | D194: مصر | E194: 280
A195: عميل 194 | B195: القصر العينى | C195: القاهرة | D195: مصر | E195: 1095
A196: عميل 195 | B196: المقطم | C196: القاهرة | D196: مصر | E196: 695
A197: عميل 196 | B197: مدينة نصر | C197: القاهرة | D197: مصر | E197: 35
A198: عميل 197 | B198: القصر العينى | C198: القاهرة | D198: مصر | E198: 875
A199: عميل 198 | B199: القصر العينى | C199: القاهرة | D199: مصر | E199: 145
A200: عميل 199 | B200: القصر العينى | C200: القاهرة | D200: مصر | E200: 660
... 265 more rows

Sheet تحليل محافظات (hidden)
A1: المحافظة | B1: عدد عمليات البيع | C1: المبلغ
A2: القاهرة | B2: =COUNTIFS(Table1[المحافظة],Table4[[#This Row],[المحافظة]]) -> 313 | C2: =SUMIF(Table1[المحافظة],Table4[[#This Row],[المحافظة]],Table1[السعر]) -> 388383.5
A3: الجيزة | B3: =COUNTIFS(Table1[المحافظة],Table4[[#This Row],[المحافظة]]) -> 55 | C3: =SUMIF(Table1[المحافظة],Table4[[#This Row],[المحافظة]],Table1[السعر]) -> 36304
A4: الدقهلية | B4: =COUNTIFS(Table1[المحافظة],Table4[[#This Row],[المحافظة]]) -> 7 | C4: =SUMIF(Table1[المحافظة],Table4[[#This Row],[المحافظة]],Table1[السعر]) -> 19246
A5: بنى سويف | B5: =COUNTIFS(Table1[المحافظة],Table4[[#This Row],[المحافظة]]) -> 10 | C5: =SUMIF(Table1[المحافظة],Table4[[#This Row],[المحافظة]],Table1[السعر]) -> 19045
A6: الشرقية | B6: =COUNTIFS(Table1[المحافظة],Table4[[#This Row],[المحافظة]]) -> 12 | C6: =SUMIF(Table1[المحافظة],Table4[[#This Row],[المحافظة]],Table1[السعر]) -> 17635
A7: الغربية | B7: =COUNTIFS(Table1[المحافظة],Table4[[#This Row],[المحافظة]]) -> 7 | C7: =SUMIF(Table1[المحافظة],Table4[[#This Row],[المحافظة]],Table1[السعر]) -> 14308
A8: الإسكندرية | B8: =COUNTIFS(Table1[المحافظة],Table4[[#This Row],[المحافظة]]) -> 3 | C8: =SUMIF(Table1[المحافظة],Table4[[#This Row],[المحافظة]],Table1[السعر]) -> 11814
A9: الأقصر | B9: =COUNTIFS(Table1[المحافظة],Table4[[#This Row],[المحافظة]]) -> 5 | C9: =SUMIF(Table1[المحافظة],Table4[[#This Row],[المحافظة]],Table1[السعر]) -> 9690
A10: القليوبية | B10: =COUNTIFS(Table1[المحافظة],Table4[[#This Row],[المحافظة]]) -> 12 | C10: =SUMIF(Table1[المحافظة],Table4[[#This Row],[المحافظة]],Table1[السعر]) -> 8105
A11: سوهاج | B11: =COUNTIFS(Table1[المحافظة],Table4[[#This Row],[المحافظة]]) -> 11 | C11: =SUMIF(Table1[المحافظة],Table4[[#This Row],[المحافظة]],Table1[السعر]) -> 7622.2
A12: أسيوط | B12: =COUNTIFS(Table1[المحافظة],Table4[[#This Row],[المحافظة]]) -> 5 | C12: =SUMIF(Table1[المحافظة],Table4[[#This Row],[المحافظة]],Table1[السعر]) -> 7191
A13: المنيا | B13: =COUNTIFS(Table1[المحافظة],Table4[[#This Row],[المحافظة]]) -> 2 | C13: =SUMIF(Table1[المحافظة],Table4[[#This Row],[المحافظة]],Table1[السعر]) -> 4350
A14: السويس | B14: =COUNTIFS(Table1[المحافظة],Table4[[#This Row],[المحافظة]]) -> 1 | C14: =SUMIF(Table1[المحافظة],Table4[[#This Row],[المحافظة]],Table1[السعر]) -> 3825
A15: قنا | B15: =COUNTIFS(Table1[المحافظة],Table4[[#This Row],[المحافظة]]) -> 3 | C15: =SUMIF(Table1[المحافظة],Table4[[#This Row],[المحافظة]],Table1[السعر]) -> 2900
A16: البحيرة | B16: =COUNTIFS(Table1[المحافظة],Table4[[#This Row],[المحافظة]]) -> 4 | C16: =SUMIF(Table1[المحافظة],Table4[[#This Row],[المحافظة]],Table1[السعر]) -> 2579
A17: الفيوم | B17: =COUNTIFS(Table1[المحافظة],Table4[[#This Row],[المحافظة]]) -> 3 | C17: =SUMIF(Table1[المحافظة],Table4[[#This Row],[المحافظة]],Table1[السعر]) -> 2340
A18: المنوفية | B18: =COUNTIFS(Table1[المحافظة],Table4[[#This Row],[المحافظة]]) -> 6 | C18: =SUMIF(Table1[المحافظة],Table4[[#This Row],[المحافظة]],Table1[السعر]) -> 1805
A19: كفر الشيخ | B19: =COUNTIFS(Table1[المحافظة],Table4[[#This Row],[المحافظة]]) -> 1 | C19: =SUMIF(Table1[المحافظة],Table4[[#This Row],[المحافظة]],Table1[السعر]) -> 300
A20: الإسماعيلية | B20: =COUNTIFS(Table1[المحافظة],Table4[[#This Row],[المحافظة]]) -> 1 | C20: =SUMIF(Table1[المحافظة],Table4[[#This Row],[المحافظة]],Table1[السعر]) -> 220
A21: أسوان | B21: =COUNTIFS(Table1[المحافظة],Table4[[#This Row],[المحافظة]]) -> 1 | C21: =SUMIF(Table1[المحافظة],Table4[[#This Row],[المحافظة]],Table1[السعر]) -> 155
A22: البحر الأحمر | B22: =COUNTIFS(Table1[المحافظة],Table4[[#This Row],[المحافظة]]) -> 1 | C22: =SUMIF(Table1[المحافظة],Table4[[#This Row],[المحافظة]],Table1[السعر]) -> 116
A23: Total | B23: =SUBTOTAL(109,Table4[عدد عمليات البيع]) -> 463 | C23: =SUBTOTAL(109,Table4[المبلغ]) -> 557933.7

Sheet تحليل عملاء
A1: إسم العميل | B1: المنطقة | C1: المحافظة | D1: عدد البيعات | E1: المبلغ
A2: عميل 1 | B2: المقطم | C2: القاهرة | D2: =COUNTIFS('بيانات البيع'!A:A,Table3[[#This Row],[إسم العميل]],'بيانات البيع'!B:B,Table3[[#This Row],[المنطقة]],'بيانات البيع'!C:C,Table3[[#This Row],[المحافظة]]) -> 0 | E2: =SUMIFS('بيانات البيع'!E:E,'بيانات البيع'!A:A,Table3[[#This Row],[إسم العميل]],'بيانات البيع'!B:B,Table3[[#This Row],[المنطقة]],'بيانات البيع'!C:C,Table3[[#This Row],[المحافظة]]) -> 0 | F2: ترتيب العملاء تنازليا
A3: عميل 2 | B3: المنيرة | C3: القاهرة | D3: =COUNTIFS('بيانات البيع'!A:A,Table3[[#This Row],[إسم العميل]],'بيانات البيع'!B:B,Table3[[#This Row],[المنطقة]],'بيانات البيع'!C:C,Table3[[#This Row],[المحافظة]]) -> 0 | E3: =SUMIFS('بيانات البيع'!E:E,'بيانات البيع'!A:A,Table3[[#This Row],[إسم العميل]],'بيانات البيع'!B:B,Table3[[#This Row],[المنطقة]],'بيانات البيع'!C:C,Table3[[#This Row],[المحافظة]]) -> 0
A4: عميل 3 | B4: بنى سويف | C4: بنى سويف | D4: =COUNTIFS('بيانات البيع'!A:A,Table3[[#This Row],[إسم العميل]],'بيانات البيع'!B:B,Table3[[#This Row],[المنطقة]],'بيانات البيع'!C:C,Table3[[#This Row],[المحافظة]]) -> 0 | E4: =SUMIFS('بيانات البيع'!E:E,'بيانات البيع'!A:A,Table3[[#This Row],[إسم العميل]],'بيانات البيع'!B:B,Table3[[#This Row],[المنطقة]],'بيانات البيع'!C:C,Table3[[#This Row],[المحافظة]]) -> 0
A5: عميل 4 | B5: القصر العينى | C5: القاهرة | D5: =COUNTIFS('بيانات البيع'!A:A,Table3[[#This Row],[إسم العميل]],'بيانات البيع'!B:B,Table3[[#This Row],[المنطقة]],'بيانات البيع'!C:C,Table3[[#This Row],[المحافظة]]) -> 1 | E5: =SUMIFS('بيانات البيع'!E:E,'بيانات البيع'!A:A,Table3[[#This Row],[إسم العميل]],'بيانات البيع'!B:B,Table3[[#This Row],[المنطقة]],'بيانات البيع'!C:C,Table3[[#This Row],[المحافظة]]) -> 150
A6: عميل 5 | B6: المنصورة | C6: الدقهلية | D6: =COUNTIFS('بيانات البيع'!A:A,Table3[[#This Row],[إسم العميل]],'بيانات البيع'!B:B,Table3[[#This Row],[المنطقة]],'بيانات البيع'!C:C,Table3[[#This Row],[المحافظة]]) -> 0 | E6: =SUMIFS('بيانات البيع'!E:E,'بيانات البيع'!A:A,Table3[[#This Row],[إسم العميل]],'بيانات البيع'!B:B,Table3[[#This Row],[المنطقة]],'بيانات البيع'!C:C,Table3[[#This Row],[المحافظة]]) -> 0
A7: عميل 6 | B7: القصر العينى | C7: القاهرة | D7: =COUNTIFS('بيانات البيع'!A:A,Table3[[#This Row],[إسم العميل]],'بيانات البيع'!B:B,Table3[[#This Row],[المنطقة]],'بيانات البيع'!C:C,Table3[[#This Row],[المحافظة]]) -> 0 | E7: =SUMIFS('بيانات البيع'!E:E,'بيانات البيع'!A:A,Table3[[#This Row],[إسم العميل]],'بيانات البيع'!B:B,Table3[[#This Row],[المنطقة]],'بيانات البيع'!C:C,Table3[[#This Row],[المحافظة]]) -> 0
A8: عميل 7 | B8: القصر العينى | C8: القاهرة | D8: =COUNTIFS('بيانات البيع'!A:A,Table3[[#This Row],[إسم العميل]],'بيانات البيع'!B:B,Table3[[#This Row],[المنطقة]],'بيانات البيع'!C:C,Table3[[#This Row],[المحافظة]]) -> 0 | E8: =SUMIFS('بيانات البيع'!E:E,'بيانات البيع'!A:A,Table3[[#This Row],[إسم العميل]],'بيانات البيع'!B:B,Table3[[#This Row],[المنطقة]],'بيانات البيع'!C:C,Table3[[#This Row],[المحافظة]]) -> 0
A9: عميل 8 | B9: القصر العينى | C9: القاهرة | D9: =COUNTIFS('بيانات البيع'!A:A,Table3[[#This Row],[إسم العميل]],'بيانات البيع'!B:B,Table3[[#This Row],[المنطقة]],'بيانات البيع'!C:C,Table3[[#This Row],[المحافظة]]) -> 0 | E9: =SUMIFS('بيانات البيع'!E:E,'بيانات البيع'!A:A,Table3[[#This Row],[إسم العميل]],'بيانات البيع'!B:B,Table3[[#This Row],[المنطقة]],'بيانات البيع'!C:C,Table3[[#This Row],[المحافظة]]) -> 0
A10: عميل 9 | B10: القصر العينى | C10: القاهرة | D10: =COUNTIFS('بيانات البيع'!A:A,Table3[[#This Row],[إسم العميل]],'بيانات البيع'!B:B,Table3[[#This Row],[المنطقة]],'بيانات البيع'!C:C,Table3[[#This Row],[المحافظة]]) -> 0 | E10: =SUMIFS('بيانات البيع'!E:E,'بيانات البيع'!A:A,Table3[[#This Row],[إسم العميل]],'بيانات البيع'!B:B,Table3[[#This Row],[المنطقة]],'بيانات البيع'!C:C,Table3[[#This Row],[المحافظة]]) -> 0
A11: عميل 10 | B11: القصر العينى | C11: القاهرة | D11: =COUNTIFS('بيانات البيع'!A:A,Table3[[#This Row],[إسم العميل]],'بيانات البيع'!B:B,Table3[[#This Row],[المنطقة]],'بيانات البيع'!C:C,Table3[[#This Row],[المحافظة]]) -> 0 | E11: =SUMIFS('بيانات البيع'!E:E,'بيانات البيع'!A:A,Table3[[#This Row],[إسم العميل]],'بيانات البيع'!B:B,Table3[[#This Row],[المنطقة]],'بيانات البيع'!C:C,Table3[[#This Row],[المحافظة]]) -> 0
A12: عميل 11 | B12: القصر العينى | C12: القاهرة | D12: =COUNTIFS('بيانات البيع'!A:A,Table3[[#This Row],[إسم العميل]],'بيانات البيع'!B:B,Table3[[#This Row],[المنطقة]],'بيانات البيع'!C:C,Table3[[#This Row],[المحافظة]]) -> 1 | E12: =SUMIFS('بيانات البيع'!E:E,'بيانات البيع'!A:A,Table3[[#This Row],[إسم العميل]],'بيانات البيع'!B:B,Table3[[#This Row],[المنطقة]],'بيانات البيع'!C:C,Table3[[#This Row],[المحافظة]]) -> 760
A13: عميل 12 | B13: مصر الجديدة | C13: القاهرة | D13: =COUNTIFS('بيانات البيع'!A:A,Table3[[#This Row],[إسم العميل]],'بيانات البيع'!B:B,Table3[[#This Row],[المنطقة]],'بيانات البيع'!C:C,Table3[[#This Row],[المحافظة]]) -> 0 | E13: =SUMIFS('بيانات البيع'!E:E,'بيانات البيع'!A:A,Table3[[#This Row],[إسم العميل]],'بيانات البيع'!B:B,Table3[[#This Row],[المنطقة]],'بيانات البيع'!C:C,Table3[[#This Row],[المحافظة]]) -> 0
A14: عميل 13 | B14: ارض الجولف | C14: القاهرة | D14: =COUNTIFS('بيانات البيع'!A:A,Table3[[#This Row],[إسم العميل]],'بيانات البيع'!B:B,Table3[[#This Row],[المنطقة]],'بيانات البيع'!C:C,Table3[[#This Row],[المحافظة]]) -> 0 | E14: =SUMIFS('بيانات البيع'!E:E,'بيانات البيع'!A:A,Table3[[#This Row],[إسم العميل]],'بيانات البيع'!B:B,Table3[[#This Row],[المنطقة]],'بيانات البيع'!C:C,Table3[[#This Row],[المحافظة]]) -> 0
A15: عميل 14 | B15: التجمع الخامس | C15: القاهرة | D15: =COUNTIFS('بيانات البيع'!A:A,Table3[[#This Row],[إسم العميل]],'بيانات البيع'!B:B,Table3[[#This Row],[المنطقة]],'بيانات البيع'!C:C,Table3[[#This Row],[المحافظة]]) -> 0 | E15: =SUMIFS('بيانات البيع'!E:E,'بيانات البيع'!A:A,Table3[[#This Row],[إسم العميل]],'بيانات البيع'!B:B,Table3[[#This Row],[المنطقة]],'بيانات البيع'!C:C,Table3[[#This Row],[المحافظة]]) -> 0
A16: عميل 15 | B16: الزقازيق | C16: الشرقية | D16: =COUNTIFS('بيانات البيع'!A:A,Table3[[#This Row],[إسم العميل]],'بيانات البيع'!B:B,Table3[[#This Row],[المنطقة]],'بيانات البيع'!C:C,Table3[[#This Row],[المحافظة]]) -> 0 | E16: =SUMIFS('بيانات البيع'!E:E,'بيانات البيع'!A:A,Table3[[#This Row],[إسم العميل]],'بيانات البيع'!B:B,Table3[[#This Row],[المنطقة]],'بيانات البيع'!C:C,Table3[[#This Row],[المحافظة]]) -> 0
A17: عميل 16 | B17: القصر العينى | C17: القاهرة | D17: =COUNTIFS('بيانات البيع'!A:A,Table3[[#This Row],[إسم العميل]],'بيانات البيع'!B:B,Table3[[#This Row],[المنطقة]],'بيانات البيع'!C:C,Table3[[#This Row],[المحافظة]]) -> 1 | E17: =SUMIFS('بيانات البيع'!E:E,'بيانات البيع'!A:A,Table3[[#This Row],[إسم العميل]],'بيانات البيع'!B:B,Table3[[#This Row],[المنطقة]],'بيانات البيع'!C:C,Table3[[#This Row],[المحافظة]]) -> 1300
A18: عميل 17 | B18: القصر العينى | C18: القاهرة | D18: =COUNTIFS('بيانات البيع'!A:A,Table3[[#This Row],[إسم العميل]],'بيانات البيع'!B:B,Table3[[#This Row],[المنطقة]],'بيانات البيع'!C:C,Table3[[#This Row],[المحافظة]]) -> 0 | E18: =SUMIFS('بيانات البيع'!E:E,'بيانات البيع'!A:A,Table3[[#This Row],[إسم العميل]],'بيانات البيع'!B:B,Table3[[#This Row],[المنطقة]],'بيانات البيع'!C:C,Table3[[#This Row],[المحافظة]]) -> 0
A19: عميل 18 | B19: القصر العينى | C19: القاهرة | D19: =COUNTIFS('بيانات البيع'!A:A,Table3[[#This Row],[إسم العميل]],'بيانات البيع'!B:B,Table3[[#This Row],[المنطقة]],'بيانات البيع'!C:C,Table3[[#This Row],[المحافظة]]) -> 1 | E19: =SUMIFS('بيانات البيع'!E:E,'بيانات البيع'!A:A,Table3[[#This Row],[إسم العميل]],'بيانات البيع'!B:B,Table3[[#This Row],[المنطقة]],'بيانات البيع'!C:C,Table3[[#This Row],[المحافظة]]) -> 990
A20: عميل 19 | B20: الإسكندرية | C20: الإسكندرية | D20: =COUNTIFS('بيانات البيع'!A:A,Table3[[#This Row],[إسم العميل]],'بيانات البيع'!B:B,Table3[[#This Row],[المنطقة]],'بيانات البيع'!C:C,Table3[[#This Row],[المحافظة]]) -> 0 | E20: =SUMIFS('بيانات البيع'!E:E,'بيانات البيع'!A:A,Table3[[#This Row],[إسم العميل]],'بيانات البيع'!B:B,Table3[[#This Row],[المنطقة]],'بيانات البيع'!C:C,Table3[[#This Row],[المحافظة]]) -> 0
A21: عميل 20 | B21: المعادى | C21: القاهرة | D21: =COUNTIFS('بيانات البيع'!A:A,Table3[[#This Row],[إسم العميل]],'بيانات البيع'!B:B,Table3[[#This Row],[المنطقة]],'بيانات البيع'!C:C,Table3[[#This Row],[المحافظة]]) -> 0 | E21: =SUMIFS('بيانات البيع'!E:E,'بيانات البيع'!A:A,Table3[[#This Row],[إسم العميل]],'بيانات البيع'!B:B,Table3[[#This Row],[المنطقة]],'بيانات البيع'!C:C,Table3[[#This Row],[المحافظة]]) -> 0
A22: عميل 21 | B22: القصر العينى | C22: القاهرة | D22: =COUNTIFS('بيانات البيع'!A:A,Table3[[#This Row],[إسم العميل]],'بيانات البيع'!B:B,Table3[[#This Row],[المنطقة]],'بيانات البيع'!C:C,Table3[[#This Row],[المحافظة]]) -> 1 | E22: =SUMIFS('بيانات البيع'!E:E,'بيانات البيع'!A:A,Table3[[#This Row],[إسم العميل]],'بيانات البيع'!B:B,Table3[[#This Row],[المنطقة]],'بيانات البيع'!C:C,Table3[[#This Row],[المحافظة]]) -> 240
A23: عميل 22 | B23: طريق الكباش | C23: الأقصر | D23: =COUNTIFS('بيانات البيع'!A:A,Table3[[#This Row],[إسم العميل]],'بيانات البيع'!B:B,Table3[[#This Row],[المنطقة]],'بيانات البيع'!C:C,Table3[[#This Row],[المحافظة]]) -> 0 | E23: =SUMIFS('بيانات البيع'!E:E,'بيانات البيع'!A:A,Table3[[#This Row],[إسم العميل]],'بيانات البيع'!B:B,Table3[[#This Row],[المنطقة]],'بيانات البيع'!C:C,Table3[[#This Row],[المحافظة]]) -> 0
A24: عميل 23 | B24: المحلة الكبرى | C24: الغربية | D24: =COUNTIFS('بيانات البيع'!A:A,Table3[[#This Row],[إسم العميل]],'بيانات البيع'!B:B,Table3[[#This Row],[المنطقة]],'بيانات البيع'!C:C,Table3[[#This Row],[المحافظة]]) -> 0 | E24: =SUMIFS('بيانات البيع'!E:E,'بيانات البيع'!A:A,Table3[[#This Row],[إسم العميل]],'بيانات البيع'!B:B,Table3[[#This Row],[المنطقة]],'بيانات البيع'!C:C,Table3[[#This Row],[المحافظة]]) -> 0
A25: عميل 24 | B25: وسط البلد | C25: القاهرة | D25: =COUNTIFS('بيانات البيع'!A:A,Table3[[#This Row],[إسم العميل]],'بيانات البيع'!B:B,Table3[[#This Row],[المنطقة]],'بيانات البيع'!C:C,Table3[[#This Row],[المحافظة]]) -> 0 | E25: =SUMIFS('بيانات البيع'!E:E,'بيانات البيع'!A:A,Table3[[#This Row],[إسم العميل]],'بيانات البيع'!B:B,Table3[[#This Row],[المنطقة]],'بيانات البيع'!C:C,Table3[[#This Row],[المحافظة]]) -> 0
A26: عميل 25 | B26: أسيوط | C26: أسيوط | D26: =COUNTIFS('بيانات البيع'!A:A,Table3[[#This Row],[إسم العميل]],'بيانات البيع'!B:B,Table3[[#This Row],[المنطقة]],'بيانات البيع'!C:C,Table3[[#This Row],[المحافظة]]) -> 0 | E26: =SUMIFS('بيانات البيع'!E:E,'بيانات البيع'!A:A,Table3[[#This Row],[إسم العميل]],'بيانات البيع'!B:B,Table3[[#This Row],[المنطقة]],'بيانات البيع'!C:C,Table3[[#This Row],[المحافظة]]) -> 0
A27: عميل 26 | B27: المهندسين | C27: الجيزة | D27: =COUNTIFS('بيانات البيع'!A:A,Table3[[#This Row],[إسم العميل]],'بيانات البيع'!B:B,Table3[[#This Row],[المنطقة]],'بيانات البيع'!C:C,Table3[[#This Row],[المحافظة]]) -> 0 | E27: =SUMIFS('بيانات البيع'!E:E,'بيانات البيع'!A:A,Table3[[#This Row],[إسم العميل]],'بيانات البيع'!B:B,Table3[[#This Row],[المنطقة]],'بيانات البيع'!C:C,Table3[[#This Row],[المحافظة]]) -> 0 | H27: أفضل العملاء من حيث عدد عمليات الشراء خلال الشهر
A28: عميل 27 | B28: القصر العينى | C28: القاهرة | D28: =COUNTIFS('بيانات البيع'!A:A,Table3[[#This Row],[إسم العميل]],'بيانات البيع'!B:B,Table3[[#This Row],[المنطقة]],'بيانات البيع'!C:C,Table3[[#This Row],[المحافظة]]) -> 0 | E28: =SUMIFS('بيانات البيع'!E:E,'بيانات البيع'!A:A,Table3[[#This Row],[إسم العميل]],'بيانات البيع'!B:B,Table3[[#This Row],[المنطقة]],'بيانات البيع'!C:C,Table3[[#This Row],[المحافظة]]) -> 0 | H28: إسم العميل | K28: عدد عمليات الشراء | M28: المبلغ
A29: عميل 28 | B29: القصر العينى | C29: القاهرة | D29: =COUNTIFS('بيانات البيع'!A:A,Table3[[#This Row],[إسم العميل]],'بيانات البيع'!B:B,Table3[[#This Row],[المنطقة]],'بيانات البيع'!C:C,Table3[[#This Row],[المحافظة]]) -> 0 | E29: =SUMIFS('بيانات البيع'!E:E,'بيانات البيع'!A:A,Table3[[#This Row],[إسم العميل]],'بيانات البيع'!B:B,Table3[[#This Row],[المنطقة]],'بيانات البيع'!C:C,Table3[[#This Row],[المحافظة]]) -> 0 | H29: عميل 1 | K29: =COUNTIF('بيانات البيع'!A:A,H29) -> 1 | M29: =SUMIFS('بيانات البيع'!E:E,'بيانات البيع'!A:A,H29) -> 525.2
A30: عميل 29 | B30: القصر العينى | C30: القاهرة | D30: =COUNTIFS('بيانات البيع'!A:A,Table3[[#This Row],[إسم العميل]],'بيانات البيع'!B:B,Table3[[#This Row],[المنطقة]],'بيانات البيع'!C:C,Table3[[#This Row],[المحافظة]]) -> 0 | E30: =SUMIFS('بيانات البيع'!E:E,'بيانات البيع'!A:A,Table3[[#This Row],[إسم العميل]],'بيانات البيع'!B:B,Table3[[#This Row],[المنطقة]],'بيانات البيع'!C:C,Table3[[#This Row],[المحافظة]]) -> 0 | H30: عميل 2 | K30: =COUNTIF('بيانات البيع'!A:A,H30) -> 1 | M30: =SUMIFS('بيانات البيع'!E:E,'بيانات البيع'!A:A,H30) -> 65
A31: عميل 30 | B31: مستشفى مصر و السودان | C31: القاهرة | D31: =COUNTIFS('بيانات البيع'!A:A,Table3[[#This Row],[إسم العميل]],'بيانات البيع'!B:B,Table3[[#This Row],[المنطقة]],'بيانات البيع'!C:C,Table3[[#This Row],[المحافظة]]) -> 0 | E31: =SUMIFS('بيانات البيع'!E:E,'بيانات البيع'!A:A,Table3[[#This Row],[إسم العميل]],'بيانات البيع'!B:B,Table3[[#This Row],[المنطقة]],'بيانات البيع'!C:C,Table3[[#This Row],[المحافظة]]) -> 0 | H31: عميل 3 | K31: =COUNTIF('بيانات البيع'!A:A,H31) -> 1 | M31: =SUMIFS('بيانات البيع'!E:E,'بيانات البيع'!A:A,H31) -> 1100
A32: عميل 31 | B32: حلوان | C32: الجيزة | D32: =COUNTIFS('بيانات البيع'!A:A,Table3[[#This Row],[إسم العميل]],'بيانات البيع'!B:B,Table3[[#This Row],[المنطقة]],'بيانات البيع'!C:C,Table3[[#This Row],[المحافظة]]) -> 0 | E32: =SUMIFS('بيانات البيع'!E:E,'بيانات البيع'!A:A,Table3[[#This Row],[إسم العميل]],'بيانات البيع'!B:B,Table3[[#This Row],[المنطقة]],'بيانات البيع'!C:C,Table3[[#This Row],[المحافظة]]) -> 0 | H32: عميل 4 | K32: =COUNTIF('بيانات البيع'!A:A,H32) -> 1 | M32: =SUMIFS('بيانات البيع'!E:E,'بيانات البيع'!A:A,H32) -> 150
A33: عميل 32 | B33: الزقازيق | C33: الشرقية | D33: =COUNTIFS('بيانات البيع'!A:A,Table3[[#This Row],[إسم العميل]],'بيانات البيع'!B:B,Table3[[#This Row],[المنطقة]],'بيانات البيع'!C:C,Table3[[#This Row],[المحافظة]]) -> 0 | E33: =SUMIFS('بيانات البيع'!E:E,'بيانات البيع'!A:A,Table3[[#This Row],[إسم العميل]],'بيانات البيع'!B:B,Table3[[#This Row],[المنطقة]],'بيانات البيع'!C:C,Table3[[#This Row],[المحافظة]]) -> 0 | H33: عميل 5 | K33: =COUNTIF('بيانات البيع'!A:A,H33) -> 1 | M33: =SUMIFS('بيانات البيع'!E:E,'بيانات البيع'!A:A,H33) -> 900
A34: عميل 33 | B34: السويس | C34: السويس | D34: =COUNTIFS('بيانات البيع'!A:A,Table3[[#This Row],[إسم العميل]],'بيانات البيع'!B:B,Table3[[#This Row],[المنطقة]],'بيانات البيع'!C:C,Table3[[#This Row],[المحافظة]]) -> 0 | E34: =SUMIFS('بيانات البيع'!E:E,'بيانات البيع'!A:A,Table3[[#This Row],[إسم العميل]],'بيانات البيع'!B:B,Table3[[#This Row],[المنطقة]],'بيانات البيع'!C:C,Table3[[#This Row],[المحافظة]]) -> 0 | H34: عميل 6 | K34: =COUNTIF('بيانات البيع'!A:A,H34) -> 1 | M34: =SUMIFS('بيانات البيع'!E:E,'بيانات البيع'!A:A,H34) -> 1025
A35: عميل 34 | B35: الشيخ زايد | C35: القاهرة | D35: =COUNTIFS('بيانات البيع'!A:A,Table3[[#This Row],[إسم العميل]],'بيانات البيع'!B:B,Table3[[#This Row],[المنطقة]],'بيانات البيع'!C:C,Table3[[#This Row],[المحافظة]]) -> 1 | E35: =SUMIFS('بيانات البيع'!E:E,'بيانات البيع'!A:A,Table3[[#This Row],[إسم العميل]],'بيانات البيع'!B:B,Table3[[#This Row],[المنطقة]],'بيانات البيع'!C:C,Table3[[#This Row],[المحافظة]]) -> 1100 | H35: عميل 7 | K35: =COUNTIF('بيانات البيع'!A:A,H35) -> 1 | M35: =SUMIFS('بيانات البيع'!E:E,'بيانات البيع'!A:A,H35) -> 5840
A36: عميل 35 | B36: القصر العينى | C36: القاهرة | D36: =COUNTIFS('بيانات البيع'!A:A,Table3[[#This Row],[إسم العميل]],'بيانات البيع'!B:B,Table3[[#This Row],[المنطقة]],'بيانات البيع'!C:C,Table3[[#This Row],[المحافظة]]) -> 0 | E36: =SUMIFS('بيانات البيع'!E:E,'بيانات البيع'!A:A,Table3[[#This Row],[إسم العميل]],'بيانات البيع'!B:B,Table3[[#This Row],[المنطقة]],'بيانات البيع'!C:C,Table3[[#This Row],[المحافظة]]) -> 0
A37: عميل 36 | B37: الدراسة | C37: القاهرة | D37: =COUNTIFS('بيانات البيع'!A:A,Table3[[#This Row],[إسم العميل]],'بيانات البيع'!B:B,Table3[[#This Row],[المنطقة]],'بيانات البيع'!C:C,Table3[[#This Row],[المحافظة]]) -> 0 | E37: =SUMIFS('بيانات البيع'!E:E,'بيانات البيع'!A:A,Table3[[#This Row],[إسم العميل]],'بيانات البيع'!B:B,Table3[[#This Row],[المنطقة]],'بيانات البيع'!C:C,Table3[[#This Row],[المحافظة]]) -> 0
A38: عميل 37 | B38: الإسكندرية | C38: الإسكندرية | D38: =COUNTIFS('بيانات البيع'!A:A,Table3[[#This Row],[إسم العميل]],'بيانات البيع'!B:B,Table3[[#This Row],[المنطقة]],'بيانات البيع'!C:C,Table3[[#This Row],[المحافظة]]) -> 0 | E38: =SUMIFS('بيانات البيع'!E:E,'بيانات البيع'!A:A,Table3[[#This Row],[إسم العميل]],'بيانات البيع'!B:B,Table3[[#This Row],[المنطقة]],'بيانات البيع'!C:C,Table3[[#This Row],[المحافظة]]) -> 0
A39: عميل 38 | B39: المحلة الكبرى | C39: الغربية | D39: =COUNTIFS('بيانات البيع'!A:A,Table3[[#This Row],[إسم العميل]],'بيانات البيع'!B:B,Table3[[#This Row],[المنطقة]],'بيانات البيع'!C:C,Table3[[#This Row],[المحافظة]]) -> 0 | E39: =SUMIFS('بيانات البيع'!E:E,'بيانات البيع'!A:A,Table3[[#This Row],[إسم العميل]],'بيانات البيع'!B:B,Table3[[#This Row],[المنطقة]],'بيانات البيع'!C:C,Table3[[#This Row],[المحافظة]]) -> 0
A40: عميل 39 | B40: الهرم | C40: الجيزة | D40: =COUNTIFS('بيانات البيع'!A:A,Table3[[#This Row],[إسم العميل]],'بيانات البيع'!B:B,Table3[[#This Row],[المنطقة]],'بيانات البيع'!C:C,Table3[[#This Row],[المحافظة]]) -> 0 | E40: =SUMIFS('بيانات البيع'!E:E,'بيانات البيع'!A:A,Table3[[#This Row],[إسم العميل]],'بيانات البيع'!B:B,Table3[[#This Row],[المنطقة]],'بيانات البيع'!C:C,Table3[[#This Row],[المحافظة]]) -> 0
A41: عميل 40 | B41: شبين القناطر | C41: القليوبية | D41: =COUNTIFS('بيانات البيع'!A:A,Table3[[#This Row],[إسم العميل]],'بيانات البيع'!B:B,Table3[[#This Row],[المنطقة]],'بيانات البيع'!C:C,Table3[[#This Row],[المحافظة]]) -> 0 | E41: =SUMIFS('بيانات البيع'!E:E,'بيانات البيع'!A:A,Table3[[#This Row],[إسم العميل]],'بيانات البيع'!B:B,Table3[[#This Row],[المنطقة]],'بيانات البيع'!C:C,Table3[[#This Row],[المحافظة]]) -> 0
A42: عميل 41 | B42: ارض اللواء | C42: الجيزة | D42: =COUNTIFS('بيانات البيع'!A:A,Table3[[#This Row],[إسم العميل]],'بيانات البيع'!B:B,Table3[[#This Row],[المنطقة]],'بيانات البيع'!C:C,Table3[[#This Row],[المحافظة]]) -> 0 | E42: =SUMIFS('بيانات البيع'!E:E,'بيانات البيع'!A:A,Table3[[#This Row],[إسم العميل]],'بيانات البيع'!B:B,Table3[[#This Row],[المنطقة]],'بيانات البيع'!C:C,Table3[[#This Row],[المحافظة]]) -> 0
A43: عميل 42 | B43: المنيا | C43: المنيا | D43: =COUNTIFS('بيانات البيع'!A:A,Table3[[#This Row],[إسم العميل]],'بيانات البيع'!B:B,Table3[[#This Row],[المنطقة]],'بيانات البيع'!C:C,Table3[[#This Row],[المحافظة]]) -> 0 | E43: =SUMIFS('بيانات البيع'!E:E,'بيانات البيع'!A:A,Table3[[#This Row],[إسم العميل]],'بيانات البيع'!B:B,Table3[[#This Row],[المنطقة]],'بيانات البيع'!C:C,Table3[[#This Row],[المحافظة]]) -> 0
A44: عميل 43 | B44: رمسيس | C44: القاهرة | D44: =COUNTIFS('بيانات البيع'!A:A,Table3[[#This Row],[إسم العميل]],'بيانات البيع'!B:B,Table3[[#This Row],[المنطقة]],'بيانات البيع'!C:C,Table3[[#This Row],[المحافظة]]) -> 0 | E44: =SUMIFS('بيانات البيع'!E:E,'بيانات البيع'!A:A,Table3[[#This Row],[إسم العميل]],'بيانات البيع'!B:B,Table3[[#This Row],[المنطقة]],'بيانات البيع'!C:C,Table3[[#This Row],[المحافظة]]) -> 0
A45: عميل 44 | B45: كوبرى القبة | C45: القاهرة | D45: =COUNTIFS('بيانات البيع'!A:A,Table3[[#This Row],[إسم العميل]],'بيانات البيع'!B:B,Table3[[#This Row],[المنطقة]],'بيانات البيع'!C:C,Table3[[#This Row],[المحافظة]]) -> 0 | E45: =SUMIFS('بيانات البيع'!E:E,'بيانات البيع'!A:A,Table3[[#This Row],[إسم العميل]],'بيانات البيع'!B:B,Table3[[#This Row],[المنطقة]],'بيانات البيع'!C:C,Table3[[#This Row],[المحافظة]]) -> 0
A46: عميل 45 | B46: العباسية | C46: القاهرة | D46: =COUNTIFS('بيانات البيع'!A:A,Table3[[#This Row],[إسم العميل]],'بيانات البيع'!B:B,Table3[[#This Row],[المنطقة]],'بيانات البيع'!C:C,Table3[[#This Row],[المحافظة]]) -> 0 | E46: =SUMIFS('بيانات البيع'!E:E,'بيانات البيع'!A:A,Table3[[#This Row],[إسم العميل]],'بيانات البيع'!B:B,Table3[[#This Row],[المنطقة]],'بيانات البيع'!C:C,Table3[[#This Row],[المحافظة]]) -> 0
A47: عميل 46 | B47: القصر العينى | C47: القاهرة | D47: =COUNTIFS('بيانات البيع'!A:A,Table3[[#This Row],[إسم العميل]],'بيانات البيع'!B:B,Table3[[#This Row],[المنطقة]],'بيانات البيع'!C:C,Table3[[#This Row],[المحافظة]]) -> 1 | E47: =SUMIFS('بيانات البيع'!E:E,'بيانات البيع'!A:A,Table3[[#This Row],[إسم العميل]],'بيانات البيع'!B:B,Table3[[#This Row],[المنطقة]],'بيانات البيع'!C:C,Table3[[#This Row],[المحافظة]]) -> 980
A48: عميل 47 | B48: القصر العينى | C48: القاهرة | D48: =COUNTIFS('بيانات البيع'!A:A,Table3[[#This Row],[إسم العميل]],'بيانات البيع'!B:B,Table3[[#This Row],[المنطقة]],'بيانات البيع'!C:C,Table3[[#This Row],[المحافظة]]) -> 1 | E48: =SUMIFS('بيانات البيع'!E:E,'بيانات البيع'!A:A,Table3[[#This Row],[إسم العميل]],'بيانات البيع'!B:B,Table3[[#This Row],[المنطقة]],'بيانات البيع'!C:C,Table3[[#This Row],[المحافظة]]) -> 600
A49: عميل 48 | B49: المرج الجديدة | C49: القاهرة | D49: =COUNTIFS('بيانات البيع'!A:A,Table3[[#This Row],[إسم العميل]],'بيانات البيع'!B:B,Table3[[#This Row],[المنطقة]],'بيانات البيع'!C:C,Table3[[#This Row],[المحافظة]]) -> 0 | E49: =SUMIFS('بيانات البيع'!E:E,'بيانات البيع'!A:A,Table3[[#This Row],[إسم العميل]],'بيانات البيع'!B:B,Table3[[#This Row],[المنطقة]],'بيانات البيع'!C:C,Table3[[#This Row],[المحافظة]]) -> 0
A50: عميل 49 | B50: القناطر الخيرية | C50: القليوبية | D50: =COUNTIFS('بيانات البيع'!A:A,Table3[[#This Row],[إسم العميل]],'بيانات البيع'!B:B,Table3[[#This Row],[المنطقة]],'بيانات البيع'!C:C,Table3[[#This Row],[المحافظة]]) -> 0 | E50: =SUMIFS('بيانات البيع'!E:E,'بيانات البيع'!A:A,Table3[[#This Row],[إسم العميل]],'بيانات البيع'!B:B,Table3[[#This Row],[المنطقة]],'بيانات البيع'!C:C,Table3[[#This Row],[المحافظة]]) -> 0
A51: عميل 50 | B51: القصر العينى | C51: القاهرة | D51: =COUNTIFS('بيانات البيع'!A:A,Table3[[#This Row],[إسم العميل]],'بيانات البيع'!B:B,Table3[[#This Row],[المنطقة]],'بيانات البيع'!C:C,Table3[[#This Row],[المحافظة]]) -> 1 | E51: =SUMIFS('بيانات البيع'!E:E,'بيانات البيع'!A:A,Table3[[#This Row],[إسم العميل]],'بيانات البيع'!B:B,Table3[[#This Row],[المنطقة]],'بيانات البيع'!C:C,Table3[[#This Row],[المحافظة]]) -> 325
A52: عميل 51 | B52: المعادى | C52: القاهرة | D52: =COUNTIFS('بيانات البيع'!A:A,Table3[[#This Row],[إسم العميل]],'بيانات البيع'!B:B,Table3[[#This Row],[المنطقة]],'بيانات البيع'!C:C,Table3[[#This Row],[المحافظة]]) -> 0 | E52: =SUMIFS('بيانات البيع'!E:E,'بيانات البيع'!A:A,Table3[[#This Row],[إسم العميل]],'بيانات البيع'!B:B,Table3[[#This Row],[المنطقة]],'بيانات البيع'!C:C,Table3[[#This Row],[المحافظة]]) -> 0
A53: عميل 52 | B53: السادس من أكتوبر | C53: القاهرة | D53: =COUNTIFS('بيانات البيع'!A:A,Table3[[#This Row],[إسم العميل]],'بيانات البيع'!B:B,Table3[[#This Row],[المنطقة]],'بيانات البيع'!C:C,Table3[[#This Row],[المحافظة]]) -> 0 | E53: =SUMIFS('بيانات البيع'!E:E,'بيانات البيع'!A:A,Table3[[#This Row],[إسم العميل]],'بيانات البيع'!B:B,Table3[[#This Row],[المنطقة]],'بيانات البيع'!C:C,Table3[[#This Row],[المحافظة]]) -> 0
A54: عميل 53 | B54: الوراق | C54: الجيزة | D54: =COUNTIFS('بيانات البيع'!A:A,Table3[[#This Row],[إسم العميل]],'بيانات البيع'!B:B,Table3[[#This Row],[المنطقة]],'بيانات البيع'!C:C,Table3[[#This Row],[المحافظة]]) -> 0 | E54: =SUMIFS('بيانات البيع'!E:E,'بيانات البيع'!A:A,Table3[[#This Row],[إسم العميل]],'بيانات البيع'!B:B,Table3[[#This Row],[المنطقة]],'بيانات البيع'!C:C,Table3[[#This Row],[المحافظة]]) -> 0
A55: عميل 54 | B55: أبو حماد | C55: الشرقية | D55: =COUNTIFS('بيانات البيع'!A:A,Table3[[#This Row],[إسم العميل]],'بيانات البيع'!B:B,Table3[[#This Row],[المنطقة]],'بيانات البيع'!C:C,Table3[[#This Row],[المحافظة]]) -> 0 | E55: =SUMIFS('بيانات البيع'!E:E,'بيانات البيع'!A:A,Table3[[#This Row],[إسم العميل]],'بيانات البيع'!B:B,Table3[[#This Row],[المنطقة]],'بيانات البيع'!C:C,Table3[[#This Row],[المحافظة]]) -> 0
A56: عميل 55 | B56: السيدة زينب | C56: القاهرة | D56: =COUNTIFS('بيانات البيع'!A:A,Table3[[#This Row],[إسم العميل]],'بيانات البيع'!B:B,Table3[[#This Row],[المنطقة]],'بيانات البيع'!C:C,Table3[[#This Row],[المحافظة]]) -> 0 | E56: =SUMIFS('بيانات البيع'!E:E,'بيانات البيع'!A:A,Table3[[#This Row],[إسم العميل]],'بيانات البيع'!B:B,Table3[[#This Row],[المنطقة]],'بيانات البيع'!C:C,Table3[[#This Row],[المحافظة]]) -> 0
A57: عميل 56 | B57: طها | C57: سوهاج | D57: =COUNTIFS('بيانات البيع'!A:A,Table3[[#This Row],[إسم العميل]],'بيانات البيع'!B:B,Table3[[#This Row],[المنطقة]],'بيانات البيع'!C:C,Table3[[#This Row],[المحافظة]]) -> 0 | E57: =SUMIFS('بيانات البيع'!E:E,'بيانات البيع'!A:A,Table3[[#This Row],[إسم العميل]],'بيانات البيع'!B:B,Table3[[#This Row],[المنطقة]],'بيانات البيع'!C:C,Table3[[#This Row],[المحافظة]]) -> 0
A58: عميل 57 | B58: القصر العينى | C58: القاهرة | D58: =COUNTIFS('بيانات البيع'!A:A,Table3[[#This Row],[إسم العميل]],'بيانات البيع'!B:B,Table3[[#This Row],[المنطقة]],'بيانات البيع'!C:C,Table3[[#This Row],[المحافظة]]) -> 1 | E58: =SUMIFS('بيانات البيع'!E:E,'بيانات البيع'!A:A,Table3[[#This Row],[إسم العميل]],'بيانات البيع'!B:B,Table3[[#This Row],[المنطقة]],'بيانات البيع'!C:C,Table3[[#This Row],[المحافظة]]) -> 1950
A59: عميل 58 | B59: فيصل | C59: الجيزة | D59: =COUNTIFS('بيانات البيع'!A:A,Table3[[#This Row],[إسم العميل]],'بيانات البيع'!B:B,Table3[[#This Row],[المنطقة]],'بيانات البيع'!C:C,Table3[[#This Row],[المحافظة]]) -> 0 | E59: =SUMIFS('بيانات البيع'!E:E,'بيانات البيع'!A:A,Table3[[#This Row],[إسم العميل]],'بيانات البيع'!B:B,Table3[[#This Row],[المنطقة]],'بيانات البيع'!C:C,Table3[[#This Row],[المحافظة]]) -> 0
A60: عميل 59 | B60: حدائق القبة | C60: القاهرة | D60: =COUNTIFS('بيانات البيع'!A:A,Table3[[#This Row],[إسم العميل]],'بيانات البيع'!B:B,Table3[[#This Row],[المنطقة]],'بيانات البيع'!C:C,Table3[[#This Row],[المحافظة]]) -> 0 | E60: =SUMIFS('بيانات البيع'!E:E,'بيانات البيع'!A:A,Table3[[#This Row],[إسم العميل]],'بيانات البيع'!B:B,Table3[[#This Row],[المنطقة]],'بيانات البيع'!C:C,Table3[[#This Row],[المحافظة]]) -> 0
A61: عميل 60 | B61: ديشنا | C61: قنا | D61: =COUNTIFS('بيانات البيع'!A:A,Table3[[#This Row],[إسم العميل]],'بيانات البيع'!B:B,Table3[[#This Row],[المنطقة]],'بيانات البيع'!C:C,Table3[[#This Row],[المحافظة]]) -> 0 | E61: =SUMIFS('بيانات البيع'!E:E,'بيانات البيع'!A:A,Table3[[#This Row],[إسم العميل]],'بيانات البيع'!B:B,Table3[[#This Row],[المنطقة]],'بيانات البيع'!C:C,Table3[[#This Row],[المحافظة]]) -> 0
A62: عميل 61 | B62: الأقصر | C62: الأقصر | D62: =COUNTIFS('بيانات البيع'!A:A,Table3[[#This Row],[إسم العميل]],'بيانات البيع'!B:B,Table3[[#This Row],[المنطقة]],'بيانات البيع'!C:C,Table3[[#This Row],[المحافظة]]) -> 0 | E62: =SUMIFS('بيانات البيع'!E:E,'بيانات البيع'!A:A,Table3[[#This Row],[إسم العميل]],'بيانات البيع'!B:B,Table3[[#This Row],[المنطقة]],'بيانات البيع'!C:C,Table3[[#This Row],[المحافظة]]) -> 0
A63: عميل 62 | B63: شبرا مصر | C63: القاهرة | D63: =COUNTIFS('بيانات البيع'!A:A,Table3[[#This Row],[إسم العميل]],'بيانات البيع'!B:B,Table3[[#This Row],[المنطقة]],'بيانات البيع'!C:C,Table3[[#This Row],[المحافظة]]) -> 1 | E63: =SUMIFS('بيانات البيع'!E:E,'بيانات البيع'!A:A,Table3[[#This Row],[إسم العميل]],'بيانات البيع'!B:B,Table3[[#This Row],[المنطقة]],'بيانات البيع'!C:C,Table3[[#This Row],[المحافظة]]) -> 1295
A64: عميل 63 | B64: الفيوم | C64: الفيوم | D64: =COUNTIFS('بيانات البيع'!A:A,Table3[[#This Row],[إسم العميل]],'بيانات البيع'!B:B,Table3[[#This Row],[المنطقة]],'بيانات البيع'!C:C,Table3[[#This Row],[المحافظة]]) -> 0 | E64: =SUMIFS('بيانات البيع'!E:E,'بيانات البيع'!A:A,Table3[[#This Row],[إسم العميل]],'بيانات البيع'!B:B,Table3[[#This Row],[المنطقة]],'بيانات البيع'!C:C,Table3[[#This Row],[المحافظة]]) -> 0
A65: عميل 64 | B65: سوهاج | C65: سوهاج | D65: =COUNTIFS('بيانات البيع'!A:A,Table3[[#This Row],[إسم العميل]],'بيانات البيع'!B:B,Table3[[#This Row],[المنطقة]],'بيانات البيع'!C:C,Table3[[#This Row],[المحافظة]]) -> 0 | E65: =SUMIFS('بيانات البيع'!E:E,'بيانات البيع'!A:A,Table3[[#This Row],[إسم العميل]],'بيانات البيع'!B:B,Table3[[#This Row],[المنطقة]],'بيانات البيع'!C:C,Table3[[#This Row],[المحافظة]]) -> 0
A66: عميل 65 | B66: القصر العينى | C66: القاهرة | D66: =COUNTIFS('بيانات البيع'!A:A,Table3[[#This Row],[إسم العميل]],'بيانات البيع'!B:B,Table3[[#This Row],[المنطقة]],'بيانات البيع'!C:C,Table3[[#This Row],[المحافظة]]) -> 0 | E66: =SUMIFS('بيانات البيع'!E:E,'بيانات البيع'!A:A,Table3[[#This Row],[إسم العميل]],'بيانات البيع'!B:B,Table3[[#This Row],[المنطقة]],'بيانات البيع'!C:C,Table3[[#This Row],[المحافظة]]) -> 0
A67: عميل 66 | B67: القصر العينى | C67: القاهرة | D67: =COUNTIFS('بيانات البيع'!A:A,Table3[[#This Row],[إسم العميل]],'بيانات البيع'!B:B,Table3[[#This Row],[المنطقة]],'بيانات البيع'!C:C,Table3[[#This Row],[المحافظة]]) -> 0 | E67: =SUMIFS('بيانات البيع'!E:E,'بيانات البيع'!A:A,Table3[[#This Row],[إسم العميل]],'بيانات البيع'!B:B,Table3[[#This Row],[المنطقة]],'بيانات البيع'!C:C,Table3[[#This Row],[المحافظة]]) -> 0
A68: عميل 67 | B68: القصر العينى | C68: القاهرة | D68: =COUNTIFS('بيانات البيع'!A:A,Table3[[#This Row],[إسم العميل]],'بيانات البيع'!B:B,Table3[[#This Row],[المنطقة]],'بيانات البيع'!C:C,Table3[[#This Row],[المحافظة]]) -> 0 | E68: =SUMIFS('بيانات البيع'!E:E,'بيانات البيع'!A:A,Table3[[#This Row],[إسم العميل]],'بيانات البيع'!B:B,Table3[[#This Row],[المنطقة]],'بيانات البيع'!C:C,Table3[[#This Row],[المحافظة]]) -> 0
A69: عميل 68 | B69: المحلة الكبرى | C69: الغربية | D69: =COUNTIFS('بيانات البيع'!A:A,Table3[[#This Row],[إسم العميل]],'بيانات البيع'!B:B,Table3[[#This Row],[المنطقة]],'بيانات البيع'!C:C,Table3[[#This Row],[المحافظة]]) -> 0 | E69: =SUMIFS('بيانات البيع'!E:E,'بيانات البيع'!A:A,Table3[[#This Row],[إسم العميل]],'بيانات البيع'!B:B,Table3[[#This Row],[المنطقة]],'بيانات البيع'!C:C,Table3[[#This Row],[المحافظة]]) -> 0
A70: عميل 69 | B70: ميت غمر | C70: الدقهلية | D70: =COUNTIFS('بيانات البيع'!A:A,Table3[[#This Row],[إسم العميل]],'بيانات البيع'!B:B,Table3[[#This Row],[المنطقة]],'بيانات البيع'!C:C,Table3[[#This Row],[المحافظة]]) -> 0 | E70: =SUMIFS('بيانات البيع'!E:E,'بيانات البيع'!A:A,Table3[[#This Row],[إسم العميل]],'بيانات البيع'!B:B,Table3[[#This Row],[المنطقة]],'بيانات البيع'!C:C,Table3[[#This Row],[المحافظة]]) -> 0
A71: عميل 70 | B71: المقطم | C71: القاهرة | D71: =COUNTIFS('بيانات البيع'!A:A,Table3[[#This Row],[إسم العميل]],'بيانات البيع'!B:B,Table3[[#This Row],[المنطقة]],'بيانات البيع'!C:C,Table3[[#This Row],[المحافظة]]) -> 0 | E71: =SUMIFS('بيانات البيع'!E:E,'بيانات البيع'!A:A,Table3[[#This Row],[إسم العميل]],'بيانات البيع'!B:B,Table3[[#This Row],[المنطقة]],'بيانات البيع'!C:C,Table3[[#This Row],[المحافظة]]) -> 0
A72: عميل 71 | B72: التجمع الأول | C72: القاهرة | D72: =COUNTIFS('بيانات البيع'!A:A,Table3[[#This Row],[إسم العميل]],'بيانات البيع'!B:B,Table3[[#This Row],[المنطقة]],'بيانات البيع'!C:C,Table3[[#This Row],[المحافظة]]) -> 0 | E72: =SUMIFS('بيانات البيع'!E:E,'بيانات البيع'!A:A,Table3[[#This Row],[إسم العميل]],'بيانات البيع'!B:B,Table3[[#This Row],[المنطقة]],'بيانات البيع'!C:C,Table3[[#This Row],[المحافظة]]) -> 0
A73: عميل 72 | B73: القصر العينى | C73: القاهرة | D73: =COUNTIFS('بيانات البيع'!A:A,Table3[[#This Row],[إسم العميل]],'بيانات البيع'!B:B,Table3[[#This Row],[المنطقة]],'بيانات البيع'!C:C,Table3[[#This Row],[المحافظة]]) -> 1 | E73: =SUMIFS('بيانات البيع'!E:E,'بيانات البيع'!A:A,Table3[[#This Row],[إسم العميل]],'بيانات البيع'!B:B,Table3[[#This Row],[المنطقة]],'بيانات البيع'!C:C,Table3[[#This Row],[المحافظة]]) -> 375
A74: عميل 73 | B74: ارض اللواء | C74: الجيزة | D74: =COUNTIFS('بيانات البيع'!A:A,Table3[[#This Row],[إسم العميل]],'بيانات البيع'!B:B,Table3[[#This Row],[المنطقة]],'بيانات البيع'!C:C,Table3[[#This Row],[المحافظة]]) -> 0 | E74: =SUMIFS('بيانات البيع'!E:E,'بيانات البيع'!A:A,Table3[[#This Row],[إسم العميل]],'بيانات البيع'!B:B,Table3[[#This Row],[المنطقة]],'بيانات البيع'!C:C,Table3[[#This Row],[المحافظة]]) -> 0
A75: عميل 74 | B75: القصر العينى | C75: القاهرة | D75: =COUNTIFS('بيانات البيع'!A:A,Table3[[#This Row],[إسم العميل]],'بيانات البيع'!B:B,Table3[[#This Row],[المنطقة]],'بيانات البيع'!C:C,Table3[[#This Row],[المحافظة]]) -> 1 | E75: =SUMIFS('بيانات البيع'!E:E,'بيانات البيع'!A:A,Table3[[#This Row],[إسم العميل]],'بيانات البيع'!B:B,Table3[[#This Row],[المنطقة]],'بيانات البيع'!C:C,Table3[[#This Row],[المحافظة]]) -> 342
A76: عميل 75 | B76: القصر العينى | C76: القاهرة | D76: =COUNTIFS('بيانات البيع'!A:A,Table3[[#This Row],[إسم العميل]],'بيانات البيع'!B:B,Table3[[#This Row],[المنطقة]],'بيانات البيع'!C:C,Table3[[#This Row],[المحافظة]]) -> 0 | E76: =SUMIFS('بيانات البيع'!E:E,'بيانات البيع'!A:A,Table3[[#This Row],[إسم العميل]],'بيانات البيع'!B:B,Table3[[#This Row],[المنطقة]],'بيانات البيع'!C:C,Table3[[#This Row],[المحافظة]]) -> 0
A77: عميل 76 | B77: القصر العينى | C77: القاهرة | D77: =COUNTIFS('بيانات البيع'!A:A,Table3[[#This Row],[إسم العميل]],'بيانات البيع'!B:B,Table3[[#This Row],[المنطقة]],'بيانات البيع'!C:C,Table3[[#This Row],[المحافظة]]) -> 0 | E77: =SUMIFS('بيانات البيع'!E:E,'بيانات البيع'!A:A,Table3[[#This Row],[إسم العميل]],'بيانات البيع'!B:B,Table3[[#This Row],[المنطقة]],'بيانات البيع'!C:C,Table3[[#This Row],[المحافظة]]) -> 0
A78: عميل 77 | B78: القصر العينى | C78: القاهرة | D78: =COUNTIFS('بيانات البيع'!A:A,Table3[[#This Row],[إسم العميل]],'بيانات البيع'!B:B,Table3[[#This Row],[المنطقة]],'بيانات البيع'!C:C,Table3[[#This Row],[المحافظة]]) -> 0 | E78: =SUMIFS('بيانات البيع'!E:E,'بيانات البيع'!A:A,Table3[[#This Row],[إسم العميل]],'بيانات البيع'!B:B,Table3[[#This Row],[المنطقة]],'بيانات البيع'!C:C,Table3[[#This Row],[المحافظة]]) -> 0
A79: عميل 78 | B79: القصر العينى | C79: القاهرة | D79: =COUNTIFS('بيانات البيع'!A:A,Table3[[#This Row],[إسم العميل]],'بيانات البيع'!B:B,Table3[[#This Row],[المنطقة]],'بيانات البيع'!C:C,Table3[[#This Row],[المحافظة]]) -> 0 | E79: =SUMIFS('بيانات البيع'!E:E,'بيانات البيع'!A:A,Table3[[#This Row],[إسم العميل]],'بيانات البيع'!B:B,Table3[[#This Row],[المنطقة]],'بيانات البيع'!C:C,Table3[[#This Row],[المحافظة]]) -> 0
A80: عميل 79 | B80: العمرانية | C80: الجيزة | D80: =COUNTIFS('بيانات البيع'!A:A,Table3[[#This Row],[إسم العميل]],'بيانات البيع'!B:B,Table3[[#This Row],[المنطقة]],'بيانات البيع'!C:C,Table3[[#This Row],[المحافظة]]) -> 0 | E80: =SUMIFS('بيانات البيع'!E:E,'بيانات البيع'!A:A,Table3[[#This Row],[إسم العميل]],'بيانات البيع'!B:B,Table3[[#This Row],[المنطقة]],'بيانات البيع'!C:C,Table3[[#This Row],[المحافظة]]) -> 0
A81: عميل 80 | B81: القصر العينى | C81: القاهرة | D81: =COUNTIFS('بيانات البيع'!A:A,Table3[[#This Row],[إسم العميل]],'بيانات البيع'!B:B,Table3[[#This Row],[المنطقة]],'بيانات البيع'!C:C,Table3[[#This Row],[المحافظة]]) -> 1 | E81: =SUMIFS('بيانات البيع'!E:E,'بيانات البيع'!A:A,Table3[[#This Row],[إسم العميل]],'بيانات البيع'!B:B,Table3[[#This Row],[المنطقة]],'بيانات البيع'!C:C,Table3[[#This Row],[المحافظة]]) -> 5
A82: عميل 81 | B82: السيدة زينب | C82: القاهرة | D82: =COUNTIFS('بيانات البيع'!A:A,Table3[[#This Row],[إسم العميل]],'بيانات البيع'!B:B,Table3[[#This Row],[المنطقة]],'بيانات البيع'!C:C,Table3[[#This Row],[المحافظة]]) -> 0 | E82: =SUMIFS('بيانات البيع'!E:E,'بيانات البيع'!A:A,Table3[[#This Row],[إسم العميل]],'بيانات البيع'!B:B,Table3[[#This Row],[المنطقة]],'بيانات البيع'!C:C,Table3[[#This Row],[المحافظة]]) -> 0
A83: عميل 82 | B83: مصر الجديدة | C83: القاهرة | D83: =COUNTIFS('بيانات البيع'!A:A,Table3[[#This Row],[إسم العميل]],'بيانات البيع'!B:B,Table3[[#This Row],[المنطقة]],'بيانات البيع'!C:C,Table3[[#This Row],[المحافظة]]) -> 0 | E83: =SUMIFS('بيانات البيع'!E:E,'بيانات البيع'!A:A,Table3[[#This Row],[إسم العميل]],'بيانات البيع'!B:B,Table3[[#This Row],[المنطقة]],'بيانات البيع'!C:C,Table3[[#This Row],[المحافظة]]) -> 0
A84: عميل 83 | B84: القصر العينى | C84: القاهرة | D84: =COUNTIFS('بيانات البيع'!A:A,Table3[[#This Row],[إسم العميل]],'بيانات البيع'!B:B,Table3[[#This Row],[المنطقة]],'بيانات البيع'!C:C,Table3[[#This Row],[المحافظة]]) -> 1 | E84: =SUMIFS('بيانات البيع'!E:E,'بيانات البيع'!A:A,Table3[[#This Row],[إسم العميل]],'بيانات البيع'!B:B,Table3[[#This Row],[المنطقة]],'بيانات البيع'!C:C,Table3[[#This Row],[المحافظة]]) -> 6450
A85: عميل 84 | B85: طنطا | C85: الغربية | D85: =COUNTIFS('بيانات البيع'!A:A,Table3[[#This Row],[إسم العميل]],'بيانات البيع'!B:B,Table3[[#This Row],[المنطقة]],'بيانات البيع'!C:C,Table3[[#This Row],[المحافظة]]) -> 0 | E85: =SUMIFS('بيانات البيع'!E:E,'بيانات البيع'!A:A,Table3[[#This Row],[إسم العميل]],'بيانات البيع'!B:B,Table3[[#This Row],[المنطقة]],'بيانات البيع'!C:C,Table3[[#This Row],[المحافظة]]) -> 0
A86: عميل 85 | B86: القصر العينى | C86: القاهرة | D86: =COUNTIFS('بيانات البيع'!A:A,Table3[[#This Row],[إسم العميل]],'بيانات البيع'!B:B,Table3[[#This Row],[المنطقة]],'بيانات البيع'!C:C,Table3[[#This Row],[المحافظة]]) -> 1 | E86: =SUMIFS('بيانات البيع'!E:E,'بيانات البيع'!A:A,Table3[[#This Row],[إسم العميل]],'بيانات البيع'!B:B,Table3[[#This Row],[المنطقة]],'بيانات البيع'!C:C,Table3[[#This Row],[المحافظة]]) -> 875
A87: عميل 86 | B87: القصر العينى | C87: القاهرة | D87: =COUNTIFS('بيانات البيع'!A:A,Table3[[#This Row],[إسم العميل]],'بيانات البيع'!B:B,Table3[[#This Row],[المنطقة]],'بيانات البيع'!C:C,Table3[[#This Row],[المحافظة]]) -> 1 | E87: =SUMIFS('بيانات البيع'!E:E,'بيانات البيع'!A:A,Table3[[#This Row],[إسم العميل]],'بيانات البيع'!B:B,Table3[[#This Row],[المنطقة]],'بيانات البيع'!C:C,Table3[[#This Row],[المحافظة]]) -> 340
A88: عميل 87 | B88: القصر العينى | C88: القاهرة | D88: =COUNTIFS('بيانات البيع'!A:A,Table3[[#This Row],[إسم العميل]],'بيانات البيع'!B:B,Table3[[#This Row],[المنطقة]],'بيانات البيع'!C:C,Table3[[#This Row],[المحافظة]]) -> 0 | E88: =SUMIFS('بيانات البيع'!E:E,'بيانات البيع'!A:A,Table3[[#This Row],[إسم العميل]],'بيانات البيع'!B:B,Table3[[#This Row],[المنطقة]],'بيانات البيع'!C:C,Table3[[#This Row],[المحافظة]]) -> 0
A89: عميل 88 | B89: سوهاج | C89: سوهاج | D89: =COUNTIFS('بيانات البيع'!A:A,Table3[[#This Row],[إسم العميل]],'بيانات البيع'!B:B,Table3[[#This Row],[المنطقة]],'بيانات البيع'!C:C,Table3[[#This Row],[المحافظة]]) -> 0 | E89: =SUMIFS('بيانات البيع'!E:E,'بيانات البيع'!A:A,Table3[[#This Row],[إسم العميل]],'بيانات البيع'!B:B,Table3[[#This Row],[المنطقة]],'بيانات البيع'!C:C,Table3[[#This Row],[المحافظة]]) -> 0
A90: عميل 89 | B90: المقطم | C90: القاهرة | D90: =COUNTIFS('بيانات البيع'!A:A,Table3[[#This Row],[إسم العميل]],'بيانات البيع'!B:B,Table3[[#This Row],[المنطقة]],'بيانات البيع'!C:C,Table3[[#This Row],[المحافظة]]) -> 0 | E90: =SUMIFS('بيانات البيع'!E:E,'بيانات البيع'!A:A,Table3[[#This Row],[إسم العميل]],'بيانات البيع'!B:B,Table3[[#This Row],[المنطقة]],'بيانات البيع'!C:C,Table3[[#This Row],[المحافظة]]) -> 0
A91: عميل 90 | B91: شبرا مصر | C91: القاهرة | D91: =COUNTIFS('بيانات البيع'!A:A,Table3[[#This Row],[إسم العميل]],'بيانات البيع'!B:B,Table3[[#This Row],[المنطقة]],'بيانات البيع'!C:C,Table3[[#This Row],[المحافظة]]) -> 0 | E91: =SUMIFS('بيانات البيع'!E:E,'بيانات البيع'!A:A,Table3[[#This Row],[إسم العميل]],'بيانات البيع'!B:B,Table3[[#This Row],[المنطقة]],'بيانات البيع'!C:C,Table3[[#This Row],[المحافظة]]) -> 0
A92: عميل 91 | B92: المعادى | C92: القاهرة | D92: =COUNTIFS('بيانات البيع'!A:A,Table3[[#This Row],[إسم العميل]],'بيانات البيع'!B:B,Table3[[#This Row],[المنطقة]],'بيانات البيع'!C:C,Table3[[#This Row],[المحافظة]]) -> 0 | E92: =SUMIFS('بيانات البيع'!E:E,'بيانات البيع'!A:A,Table3[[#This Row],[إسم العميل]],'بيانات البيع'!B:B,Table3[[#This Row],[المنطقة]],'بيانات البيع'!C:C,Table3[[#This Row],[المحافظة]]) -> 0
A93: عميل 92 | B93: العباسية | C93: القاهرة | D93: =COUNTIFS('بيانات البيع'!A:A,Table3[[#This Row],[إسم العميل]],'بيانات البيع'!B:B,Table3[[#This Row],[المنطقة]],'بيانات البيع'!C:C,Table3[[#This Row],[المحافظة]]) -> 0 | E93: =SUMIFS('بيانات البيع'!E:E,'بيانات البيع'!A:A,Table3[[#This Row],[إسم العميل]],'بيانات البيع'!B:B,Table3[[#This Row],[المنطقة]],'بيانات البيع'!C:C,Table3[[#This Row],[المحافظة]]) -> 0
A94: عميل 93 | B94: البحيرة | C94: البحيرة | D94: =COUNTIFS('بيانات البيع'!A:A,Table3[[#This Row],[إسم العميل]],'بيانات البيع'!B:B,Table3[[#This Row],[المنطقة]],'بيانات البيع'!C:C,Table3[[#This Row],[المحافظة]]) -> 0 | E94: =SUMIFS('بيانات البيع'!E:E,'بيانات البيع'!A:A,Table3[[#This Row],[إسم العميل]],'بيانات البيع'!B:B,Table3[[#This Row],[المنطقة]],'بيانات البيع'!C:C,Table3[[#This Row],[المحافظة]]) -> 0
A95: عميل 94 | B95: القصر العينى | C95: القاهرة | D95: =COUNTIFS('بيانات البيع'!A:A,Table3[[#This Row],[إسم العميل]],'بيانات البيع'!B:B,Table3[[#This Row],[المنطقة]],'بيانات البيع'!C:C,Table3[[#This Row],[المحافظة]]) -> 1 | E95: =SUMIFS('بيانات البيع'!E:E,'بيانات البيع'!A:A,Table3[[#This Row],[إسم العميل]],'بيانات البيع'!B:B,Table3[[#This Row],[المنطقة]],'بيانات البيع'!C:C,Table3[[#This Row],[المحافظة]]) -> 75
A96: عميل 95 | B96: القصر العينى | C96: القاهرة | D96: =COUNTIFS('بيانات البيع'!A:A,Table3[[#This Row],[إسم العميل]],'بيانات البيع'!B:B,Table3[[#This Row],[المنطقة]],'بيانات البيع'!C:C,Table3[[#This Row],[المحافظة]]) -> 1 | E96: =SUMIFS('بيانات البيع'!E:E,'بيانات البيع'!A:A,Table3[[#This Row],[إسم العميل]],'بيانات البيع'!B:B,Table3[[#This Row],[المنطقة]],'بيانات البيع'!C:C,Table3[[#This Row],[المحافظة]]) -> 600
A97: عميل 96 | B97: أسيوط | C97: أسيوط | D97: =COUNTIFS('بيانات البيع'!A:A,Table3[[#This Row],[إسم العميل]],'بيانات البيع'!B:B,Table3[[#This Row],[المنطقة]],'بيانات البيع'!C:C,Table3[[#This Row],[المحافظة]]) -> 0 | E97: =SUMIFS('بيانات البيع'!E:E,'بيانات البيع'!A:A,Table3[[#This Row],[إسم العميل]],'بيانات البيع'!B:B,Table3[[#This Row],[المنطقة]],'بيانات البيع'!C:C,Table3[[#This Row],[المحافظة]]) -> 0
A98: عميل 97 | B98: مدينتي | C98: القاهرة | D98: =COUNTIFS('بيانات البيع'!A:A,Table3[[#This Row],[إسم العميل]],'بيانات البيع'!B:B,Table3[[#This Row],[المنطقة]],'بيانات البيع'!C:C,Table3[[#This Row],[المحافظة]]) -> 0 | E98: =SUMIFS('بيانات البيع'!E:E,'بيانات البيع'!A:A,Table3[[#This Row],[إسم العميل]],'بيانات البيع'!B:B,Table3[[#This Row],[المنطقة]],'بيانات البيع'!C:C,Table3[[#This Row],[المحافظة]]) -> 0
A99: عميل 98 | B99: مدينة نصر | C99: القاهرة | D99: =COUNTIFS('بيانات البيع'!A:A,Table3[[#This Row],[إسم العميل]],'بيانات البيع'!B:B,Table3[[#This Row],[المنطقة]],'بيانات البيع'!C:C,Table3[[#This Row],[المحافظة]]) -> 0 | E99: =SUMIFS('بيانات البيع'!E:E,'بيانات البيع'!A:A,Table3[[#This Row],[إسم العميل]],'بيانات البيع'!B:B,Table3[[#This Row],[المنطقة]],'بيانات البيع'!C:C,Table3[[#This Row],[المحافظة]]) -> 0
A100: عميل 99 | B100: المقطم | C100: القاهرة | D100: =COUNTIFS('بيانات البيع'!A:A,Table3[[#This Row],[إسم العميل]],'بيانات البيع'!B:B,Table3[[#This Row],[المنطقة]],'بيانات البيع'!C:C,Table3[[#This Row],[المحافظة]]) -> 0 | E100: =SUMIFS('بيانات البيع'!E:E,'بيانات البيع'!A:A,Table3[[#This Row],[إسم العميل]],'بيانات البيع'!B:B,Table3[[#This Row],[المنطقة]],'بيانات البيع'!C:C,Table3[[#This Row],[المحافظة]]) -> 0
A101: عميل 100 | B101: الخلفاوى | C101: القاهرة | D101: =COUNTIFS('بيانات البيع'!A:A,Table3[[#This Row],[إسم العميل]],'بيانات البيع'!B:B,Table3[[#This Row],[المنطقة]],'بيانات البيع'!C:C,Table3[[#This Row],[المحافظة]]) -> 0 | E101: =SUMIFS('بيانات البيع'!E:E,'بيانات البيع'!A:A,Table3[[#This Row],[إسم العميل]],'بيانات البيع'!B:B,Table3[[#This Row],[المنطقة]],'بيانات البيع'!C:C,Table3[[#This Row],[المحافظة]]) -> 0
A102: عميل 101 | B102: المنيا | C102: المنيا | D102: =COUNTIFS('بيانات البيع'!A:A,Table3[[#This Row],[إسم العميل]],'بيانات البيع'!B:B,Table3[[#This Row],[المنطقة]],'بيانات البيع'!C:C,Table3[[#This Row],[المحافظة]]) -> 0 | E102: =SUMIFS('بيانات البيع'!E:E,'بيانات البيع'!A:A,Table3[[#This Row],[إسم العميل]],'بيانات البيع'!B:B,Table3[[#This Row],[المنطقة]],'بيانات البيع'!C:C,Table3[[#This Row],[المحافظة]]) -> 0
A103: عميل 102 | B103: حدائق القبة | C103: القاهرة | D103: =COUNTIFS('بيانات البيع'!A:A,Table3[[#This Row],[إسم العميل]],'بيانات البيع'!B:B,Table3[[#This Row],[المنطقة]],'بيانات البيع'!C:C,Table3[[#This Row],[المحافظة]]) -> 0 | E103: =SUMIFS('بيانات البيع'!E:E,'بيانات البيع'!A:A,Table3[[#This Row],[إسم العميل]],'بيانات البيع'!B:B,Table3[[#This Row],[المنطقة]],'بيانات البيع'!C:C,Table3[[#This Row],[المحافظة]]) -> 0
A104: عميل 103 | B104: المطرية | C104: الجيزة | D104: =COUNTIFS('بيانات البيع'!A:A,Table3[[#This Row],[إسم العميل]],'بيانات البيع'!B:B,Table3[[#This Row],[المنطقة]],'بيانات البيع'!C:C,Table3[[#This Row],[المحافظة]]) -> 0 | E104: =SUMIFS('بيانات البيع'!E:E,'بيانات البيع'!A:A,Table3[[#This Row],[إسم العميل]],'بيانات البيع'!B:B,Table3[[#This Row],[المنطقة]],'بيانات البيع'!C:C,Table3[[#This Row],[المحافظة]]) -> 0
A105: عميل 104 | B105: القصر العينى | C105: القاهرة | D105: =COUNTIFS('بيانات البيع'!A:A,Table3[[#This Row],[إسم العميل]],'بيانات البيع'!B:B,Table3[[#This Row],[المنطقة]],'بيانات البيع'!C:C,Table3[[#This Row],[المحافظة]]) -> 0 | E105: =SUMIFS('بيانات البيع'!E:E,'بيانات البيع'!A:A,Table3[[#This Row],[إسم العميل]],'بيانات البيع'!B:B,Table3[[#This Row],[المنطقة]],'بيانات البيع'!C:C,Table3[[#This Row],[المحافظة]]) -> 0
A106: عميل 105 | B106: الجيزة | C106: الجيزة | D106: =COUNTIFS('بيانات البيع'!A:A,Table3[[#This Row],[إسم العميل]],'بيانات البيع'!B:B,Table3[[#This Row],[المنطقة]],'بيانات البيع'!C:C,Table3[[#This Row],[المحافظة]]) -> 0 | E106: =SUMIFS('بيانات البيع'!E:E,'بيانات البيع'!A:A,Table3[[#This Row],[إسم العميل]],'بيانات البيع'!B:B,Table3[[#This Row],[المنطقة]],'بيانات البيع'!C:C,Table3[[#This Row],[المحافظة]]) -> 0
A107: عميل 106 | B107: المهندسين | C107: الجيزة | D107: =COUNTIFS('بيانات البيع'!A:A,Table3[[#This Row],[إسم العميل]],'بيانات البيع'!B:B,Table3[[#This Row],[المنطقة]],'بيانات البيع'!C:C,Table3[[#This Row],[المحافظة]]) -> 0 | E107: =SUMIFS('بيانات البيع'!E:E,'بيانات البيع'!A:A,Table3[[#This Row],[إسم العميل]],'بيانات البيع'!B:B,Table3[[#This Row],[المنطقة]],'بيانات البيع'!C:C,Table3[[#This Row],[المحافظة]]) -> 0
A108: عميل 107 | B108: مدينة نصر | C108: القاهرة | D108: =COUNTIFS('بيانات البيع'!A:A,Table3[[#This Row],[إسم العميل]],'بيانات البيع'!B:B,Table3[[#This Row],[المنطقة]],'بيانات البيع'!C:C,Table3[[#This Row],[المحافظة]]) -> 0 | E108: =SUMIFS('بيانات البيع'!E:E,'بيانات البيع'!A:A,Table3[[#This Row],[إسم العميل]],'بيانات البيع'!B:B,Table3[[#This Row],[المنطقة]],'بيانات البيع'!C:C,Table3[[#This Row],[المحافظة]]) -> 0
A109: عميل 108 | B109: عين شمس | C109: القاهرة | D109: =COUNTIFS('بيانات البيع'!A:A,Table3[[#This Row],[إسم العميل]],'بيانات البيع'!B:B,Table3[[#This Row],[المنطقة]],'بيانات البيع'!C:C,Table3[[#This Row],[المحافظة]]) -> 0 | E109: =SUMIFS('بيانات البيع'!E:E,'بيانات البيع'!A:A,Table3[[#This Row],[إسم العميل]],'بيانات البيع'!B:B,Table3[[#This Row],[المنطقة]],'بيانات البيع'!C:C,Table3[[#This Row],[المحافظة]]) -> 0
A110: عميل 109 | B110: القصر العينى | C110: القاهرة | D110: =COUNTIFS('بيانات البيع'!A:A,Table3[[#This Row],[إسم العميل]],'بيانات البيع'!B:B,Table3[[#This Row],[المنطقة]],'بيانات البيع'!C:C,Table3[[#This Row],[المحافظة]]) -> 1 | E110: =SUMIFS('بيانات البيع'!E:E,'بيانات البيع'!A:A,Table3[[#This Row],[إسم العميل]],'بيانات البيع'!B:B,Table3[[#This Row],[المنطقة]],'بيانات البيع'!C:C,Table3[[#This Row],[المحافظة]]) -> 1050
A111: عميل 110 | B111: الإسكندرية | C111: الإسكندرية | D111: =COUNTIFS('بيانات البيع'!A:A,Table3[[#This Row],[إسم العميل]],'بيانات البيع'!B:B,Table3[[#This Row],[المنطقة]],'بيانات البيع'!C:C,Table3[[#This Row],[المحافظة]]) -> 0 | E111: =SUMIFS('بيانات البيع'!E:E,'بيانات البيع'!A:A,Table3[[#This Row],[إسم العميل]],'بيانات البيع'!B:B,Table3[[#This Row],[المنطقة]],'بيانات البيع'!C:C,Table3[[#This Row],[المحافظة]]) -> 0
A112: عميل 111 | B112: مدينة نصر | C112: القاهرة | D112: =COUNTIFS('بيانات البيع'!A:A,Table3[[#This Row],[إسم العميل]],'بيانات البيع'!B:B,Table3[[#This Row],[المنطقة]],'بيانات البيع'!C:C,Table3[[#This Row],[المحافظة]]) -> 0 | E112: =SUMIFS('بيانات البيع'!E:E,'بيانات البيع'!A:A,Table3[[#This Row],[إسم العميل]],'بيانات البيع'!B:B,Table3[[#This Row],[المنطقة]],'بيانات البيع'!C:C,Table3[[#This Row],[المحافظة]]) -> 0
A113: عميل 112 | B113: القصر العينى | C113: القاهرة | D113: =COUNTIFS('بيانات البيع'!A:A,Table3[[#This Row],[إسم العميل]],'بيانات البيع'!B:B,Table3[[#This Row],[المنطقة]],'بيانات البيع'!C:C,Table3[[#This Row],[المحافظة]]) -> 0 | E113: =SUMIFS('بيانات البيع'!E:E,'بيانات البيع'!A:A,Table3[[#This Row],[إسم العميل]],'بيانات البيع'!B:B,Table3[[#This Row],[المنطقة]],'بيانات البيع'!C:C,Table3[[#This Row],[المحافظة]]) -> 0
A114: عميل 113 | B114: سوهاج | C114: سوهاج | D114: =COUNTIFS('بيانات البيع'!A:A,Table3[[#This Row],[إسم العميل]],'بيانات البيع'!B:B,Table3[[#This Row],[المنطقة]],'بيانات البيع'!C:C,Table3[[#This Row],[المحافظة]]) -> 0 | E114: =SUMIFS('بيانات البيع'!E:E,'بيانات البيع'!A:A,Table3[[#This Row],[إسم العميل]],'بيانات البيع'!B:B,Table3[[#This Row],[المنطقة]],'بيانات البيع'!C:C,Table3[[#This Row],[المحافظة]]) -> 0
A115: عميل 114 | B115: حدائق القبة | C115: القاهرة | D115: =COUNTIFS('بيانات البيع'!A:A,Table3[[#This Row],[إسم العميل]],'بيانات البيع'!B:B,Table3[[#This Row],[المنطقة]],'بيانات البيع'!C:C,Table3[[#This Row],[المحافظة]]) -> 0 | E115: =SUMIFS('بيانات البيع'!E:E,'بيانات البيع'!A:A,Table3[[#This Row],[إسم العميل]],'بيانات البيع'!B:B,Table3[[#This Row],[المنطقة]],'بيانات البيع'!C:C,Table3[[#This Row],[المحافظة]]) -> 0
A116: عميل 115 | B116: الهرم | C116: الجيزة | D116: =COUNTIFS('بيانات البيع'!A:A,Table3[[#This Row],[إسم العميل]],'بيانات البيع'!B:B,Table3[[#This Row],[المنطقة]],'بيانات البيع'!C:C,Table3[[#This Row],[المحافظة]]) -> 0 | E116: =SUMIFS('بيانات البيع'!E:E,'بيانات البيع'!A:A,Table3[[#This Row],[إسم العميل]],'بيانات البيع'!B:B,Table3[[#This Row],[المنطقة]],'بيانات البيع'!C:C,Table3[[#This Row],[المحافظة]]) -> 0
A117: عميل 116 | B117: القصر العينى | C117: القاهرة | D117: =COUNTIFS('بيانات البيع'!A:A,Table3[[#This Row],[إسم العميل]],'بيانات البيع'!B:B,Table3[[#This Row],[المنطقة]],'بيانات البيع'!C:C,Table3[[#This Row],[المحافظة]]) -> 1 | E117: =SUMIFS('بيانات البيع'!E:E,'بيانات البيع'!A:A,Table3[[#This Row],[إسم العميل]],'بيانات البيع'!B:B,Table3[[#This Row],[المنطقة]],'بيانات البيع'!C:C,Table3[[#This Row],[المحافظة]]) -> 70
A118: عميل 117 | B118: القصر العينى | C118: القاهرة | D118: =COUNTIFS('بيانات البيع'!A:A,Table3[[#This Row],[إسم العميل]],'بيانات البيع'!B:B,Table3[[#This Row],[المنطقة]],'بيانات البيع'!C:C,Table3[[#This Row],[المحافظة]]) -> 0 | E118: =SUMIFS('بيانات البيع'!E:E,'بيانات البيع'!A:A,Table3[[#This Row],[إسم العميل]],'بيانات البيع'!B:B,Table3[[#This Row],[المنطقة]],'بيانات البيع'!C:C,Table3[[#This Row],[المحافظة]]) -> 0
A119: عميل 118 | B119: القصر العينى | C119: القاهرة | D119: =COUNTIFS('بيانات البيع'!A:A,Table3[[#This Row],[إسم العميل]],'بيانات البيع'!B:B,Table3[[#This Row],[المنطقة]],'بيانات البيع'!C:C,Table3[[#This Row],[المحافظة]]) -> 0 | E119: =SUMIFS('بيانات البيع'!E:E,'بيانات البيع'!A:A,Table3[[#This Row],[إسم العميل]],'بيانات البيع'!B:B,Table3[[#This Row],[المنطقة]],'بيانات البيع'!C:C,Table3[[#This Row],[المحافظة]]) -> 0
A120: عميل 119 | B120: القصر العينى | C120: القاهرة | D120: =COUNTIFS('بيانات البيع'!A:A,Table3[[#This Row],[إسم العميل]],'بيانات البيع'!B:B,Table3[[#This Row],[المنطقة]],'بيانات البيع'!C:C,Table3[[#This Row],[المحافظة]]) -> 0 | E120: =SUMIFS('بيانات البيع'!E:E,'بيانات البيع'!A:A,Table3[[#This Row],[إسم العميل]],'بيانات البيع'!B:B,Table3[[#This Row],[المنطقة]],'بيانات البيع'!C:C,Table3[[#This Row],[المحافظة]]) -> 0
A121: عميل 120 | B121: طنطا | C121: الغربية | D121: =COUNTIFS('بيانات البيع'!A:A,Table3[[#This Row],[إسم العميل]],'بيانات البيع'!B:B,Table3[[#This Row],[المنطقة]],'بيانات البيع'!C:C,Table3[[#This Row],[المحافظة]]) -> 0 | E121: =SUMIFS('بيانات البيع'!E:E,'بيانات البيع'!A:A,Table3[[#This Row],[إسم العميل]],'بيانات البيع'!B:B,Table3[[#This Row],[المنطقة]],'بيانات البيع'!C:C,Table3[[#This Row],[المحافظة]]) -> 0
A122: عميل 121 | B122: نجع حمادى | C122: قنا | D122: =COUNTIFS('بيانات البيع'!A:A,Table3[[#This Row],[إسم العميل]],'بيانات البيع'!B:B,Table3[[#This Row],[المنطقة]],'بيانات البيع'!C:C,Table3[[#This Row],[المحافظة]]) -> 0 | E122: =SUMIFS('بيانات البيع'!E:E,'بيانات البيع'!A:A,Table3[[#This Row],[إسم العميل]],'بيانات البيع'!B:B,Table3[[#This Row],[المنطقة]],'بيانات البيع'!C:C,Table3[[#This Row],[المحافظة]]) -> 0
A123: عميل 122 | B123: شبرا مصر | C123: القاهرة | D123: =COUNTIFS('بيانات البيع'!A:A,Table3[[#This Row],[إسم العميل]],'بيانات البيع'!B:B,Table3[[#This Row],[المنطقة]],'بيانات البيع'!C:C,Table3[[#This Row],[المحافظة]]) -> 0 | E123: =SUMIFS('بيانات البيع'!E:E,'بيانات البيع'!A:A,Table3[[#This Row],[إسم العميل]],'بيانات البيع'!B:B,Table3[[#This Row],[المنطقة]],'بيانات البيع'!C:C,Table3[[#This Row],[المحافظة]]) -> 0
A124: عميل 123 | B124: الفسطاط الجديدة | C124: القاهرة | D124: =COUNTIFS('بيانات البيع'!A:A,Table3[[#This Row],[إسم العميل]],'بيانات البيع'!B:B,Table3[[#This Row],[المنطقة]],'بيانات البيع'!C:C,Table3[[#This Row],[المحافظة]]) -> 0 | E124: =SUMIFS('بيانات البيع'!E:E,'بيانات البيع'!A:A,Table3[[#This Row],[إسم العميل]],'بيانات البيع'!B:B,Table3[[#This Row],[المنطقة]],'بيانات البيع'!C:C,Table3[[#This Row],[المحافظة]]) -> 0
A125: عميل 124 | B125: القصر العينى | C125: القاهرة | D125: =COUNTIFS('بيانات البيع'!A:A,Table3[[#This Row],[إسم العميل]],'بيانات البيع'!B:B,Table3[[#This Row],[المنطقة]],'بيانات البيع'!C:C,Table3[[#This Row],[المحافظة]]) -> 1 | E125: =SUMIFS('بيانات البيع'!E:E,'بيانات البيع'!A:A,Table3[[#This Row],[إسم العميل]],'بيانات البيع'!B:B,Table3[[#This Row],[المنطقة]],'بيانات البيع'!C:C,Table3[[#This Row],[المحافظة]]) -> 10000
A126: عميل 125 | B126: صلاح سالم | C126: بنى سويف | D126: =COUNTIFS('بيانات البيع'!A:A,Table3[[#This Row],[إسم العميل]],'بيانات البيع'!B:B,Table3[[#This Row],[المنطقة]],'بيانات البيع'!C:C,Table3[[#This Row],[المحافظة]]) -> 0 | E126: =SUMIFS('بيانات البيع'!E:E,'بيانات البيع'!A:A,Table3[[#This Row],[إسم العميل]],'بيانات البيع'!B:B,Table3[[#This Row],[المنطقة]],'بيانات البيع'!C:C,Table3[[#This Row],[المحافظة]]) -> 0
A127: عميل 126 | B127: امبابة | C127: الجيزة | D127: =COUNTIFS('بيانات البيع'!A:A,Table3[[#This Row],[إسم العميل]],'بيانات البيع'!B:B,Table3[[#This Row],[المنطقة]],'بيانات البيع'!C:C,Table3[[#This Row],[المحافظة]]) -> 0 | E127: =SUMIFS('بيانات البيع'!E:E,'بيانات البيع'!A:A,Table3[[#This Row],[إسم العميل]],'بيانات البيع'!B:B,Table3[[#This Row],[المنطقة]],'بيانات البيع'!C:C,Table3[[#This Row],[المحافظة]]) -> 0
A128: عميل 127 | B128: دمنهور | C128: البحيرة | D128: =COUNTIFS('بيانات البيع'!A:A,Table3[[#This Row],[إسم العميل]],'بيانات البيع'!B:B,Table3[[#This Row],[المنطقة]],'بيانات البيع'!C:C,Table3[[#This Row],[المحافظة]]) -> 0 | E128: =SUMIFS('بيانات البيع'!E:E,'بيانات البيع'!A:A,Table3[[#This Row],[إسم العميل]],'بيانات البيع'!B:B,Table3[[#This Row],[المنطقة]],'بيانات البيع'!C:C,Table3[[#This Row],[المحافظة]]) -> 0
A129: عميل 128 | B129: مستشفى الشرق | C129: الجيزة | D129: =COUNTIFS('بيانات البيع'!A:A,Table3[[#This Row],[إسم العميل]],'بيانات البيع'!B:B,Table3[[#This Row],[المنطقة]],'بيانات البيع'!C:C,Table3[[#This Row],[المحافظة]]) -> 0 | E129: =SUMIFS('بيانات البيع'!E:E,'بيانات البيع'!A:A,Table3[[#This Row],[إسم العميل]],'بيانات البيع'!B:B,Table3[[#This Row],[المنطقة]],'بيانات البيع'!C:C,Table3[[#This Row],[المحافظة]]) -> 0
A130: عميل 129 | B130: مصر الجديدة | C130: القاهرة | D130: =COUNTIFS('بيانات البيع'!A:A,Table3[[#This Row],[إسم العميل]],'بيانات البيع'!B:B,Table3[[#This Row],[المنطقة]],'بيانات البيع'!C:C,Table3[[#This Row],[المحافظة]]) -> 0 | E130: =SUMIFS('بيانات البيع'!E:E,'بيانات البيع'!A:A,Table3[[#This Row],[إسم العميل]],'بيانات البيع'!B:B,Table3[[#This Row],[المنطقة]],'بيانات البيع'!C:C,Table3[[#This Row],[المحافظة]]) -> 0
A131: عميل 130 | B131: الهرم | C131: الجيزة | D131: =COUNTIFS('بيانات البيع'!A:A,Table3[[#This Row],[إسم العميل]],'بيانات البيع'!B:B,Table3[[#This Row],[المنطقة]],'بيانات البيع'!C:C,Table3[[#This Row],[المحافظة]]) -> 0 | E131: =SUMIFS('بيانات البيع'!E:E,'بيانات البيع'!A:A,Table3[[#This Row],[إسم العميل]],'بيانات البيع'!B:B,Table3[[#This Row],[المنطقة]],'بيانات البيع'!C:C,Table3[[#This Row],[المحافظة]]) -> 0
A132: عميل 131 | B132: باب اللوق | C132: القاهرة | D132: =COUNTIFS('بيانات البيع'!A:A,Table3[[#This Row],[إسم العميل]],'بيانات البيع'!B:B,Table3[[#This Row],[المنطقة]],'بيانات البيع'!C:C,Table3[[#This Row],[المحافظة]]) -> 0 | E132: =SUMIFS('بيانات البيع'!E:E,'بيانات البيع'!A:A,Table3[[#This Row],[إسم العميل]],'بيانات البيع'!B:B,Table3[[#This Row],[المنطقة]],'بيانات البيع'!C:C,Table3[[#This Row],[المحافظة]]) -> 0
A133: عميل 132 | B133: القصر العينى | C133: القاهرة | D133: =COUNTIFS('بيانات البيع'!A:A,Table3[[#This Row],[إسم العميل]],'بيانات البيع'!B:B,Table3[[#This Row],[المنطقة]],'بيانات البيع'!C:C,Table3[[#This Row],[المحافظة]]) -> 0 | E133: =SUMIFS('بيانات البيع'!E:E,'بيانات البيع'!A:A,Table3[[#This Row],[إسم العميل]],'بيانات البيع'!B:B,Table3[[#This Row],[المنطقة]],'بيانات البيع'!C:C,Table3[[#This Row],[المحافظة]]) -> 0
A134: عميل 133 | B134: القصر العينى | C134: القاهرة | D134: =COUNTIFS('بيانات البيع'!A:A,Table3[[#This Row],[إسم العميل]],'بيانات البيع'!B:B,Table3[[#This Row],[المنطقة]],'بيانات البيع'!C:C,Table3[[#This Row],[المحافظة]]) -> 0 | E134: =SUMIFS('بيانات البيع'!E:E,'بيانات البيع'!A:A,Table3[[#This Row],[إسم العميل]],'بيانات البيع'!B:B,Table3[[#This Row],[المنطقة]],'بيانات البيع'!C:C,Table3[[#This Row],[المحافظة]]) -> 0
A135: عميل 134 | B135: القصر العينى | C135: القاهرة | D135: =COUNTIFS('بيانات البيع'!A:A,Table3[[#This Row],[إسم العميل]],'بيانات البيع'!B:B,Table3[[#This Row],[المنطقة]],'بيانات البيع'!C:C,Table3[[#This Row],[المحافظة]]) -> 1 | E135: =SUMIFS('بيانات البيع'!E:E,'بيانات البيع'!A:A,Table3[[#This Row],[إسم العميل]],'بيانات البيع'!B:B,Table3[[#This Row],[المنطقة]],'بيانات البيع'!C:C,Table3[[#This Row],[المحافظة]]) -> 6850
A136: عميل 135 | B136: القصر العينى | C136: القاهرة | D136: =COUNTIFS('بيانات البيع'!A:A,Table3[[#This Row],[إسم العميل]],'بيانات البيع'!B:B,Table3[[#This Row],[المنطقة]],'بيانات البيع'!C:C,Table3[[#This Row],[المحافظة]]) -> 1 | E136: =SUMIFS('بيانات البيع'!E:E,'بيانات البيع'!A:A,Table3[[#This Row],[إسم العميل]],'بيانات البيع'!B:B,Table3[[#This Row],[المنطقة]],'بيانات البيع'!C:C,Table3[[#This Row],[المحافظة]]) -> 375
A137: عميل 136 | B137: مدينة نصر | C137: القاهرة | D137: =COUNTIFS('بيانات البيع'!A:A,Table3[[#This Row],[إسم العميل]],'بيانات البيع'!B:B,Table3[[#This Row],[المنطقة]],'بيانات البيع'!C:C,Table3[[#This Row],[المحافظة]]) -> 1 | E137: =SUMIFS('بيانات البيع'!E:E,'بيانات البيع'!A:A,Table3[[#This Row],[إسم العميل]],'بيانات البيع'!B:B,Table3[[#This Row],[المنطقة]],'بيانات البيع'!C:C,Table3[[#This Row],[المحافظة]]) -> 100
A138: عميل 137 | B138: مصر الجديدة | C138: القاهرة | D138: =COUNTIFS('بيانات البيع'!A:A,Table3[[#This Row],[إسم العميل]],'بيانات البيع'!B:B,Table3[[#This Row],[المنطقة]],'بيانات البيع'!C:C,Table3[[#This Row],[المحافظة]]) -> 0 | E138: =SUMIFS('بيانات البيع'!E:E,'بيانات البيع'!A:A,Table3[[#This Row],[إسم العميل]],'بيانات البيع'!B:B,Table3[[#This Row],[المنطقة]],'بيانات البيع'!C:C,Table3[[#This Row],[المحافظة]]) -> 0
A139: عميل 138 | B139: المقطم | C139: القاهرة | D139: =COUNTIFS('بيانات البيع'!A:A,Table3[[#This Row],[إسم العميل]],'بيانات البيع'!B:B,Table3[[#This Row],[المنطقة]],'بيانات البيع'!C:C,Table3[[#This Row],[المحافظة]]) -> 0 | E139: =SUMIFS('بيانات البيع'!E:E,'بيانات البيع'!A:A,Table3[[#This Row],[إسم العميل]],'بيانات البيع'!B:B,Table3[[#This Row],[المنطقة]],'بيانات البيع'!C:C,Table3[[#This Row],[المحافظة]]) -> 0
A140: عميل 139 | B140: القصر العينى | C140: القاهرة | D140: =COUNTIFS('بيانات البيع'!A:A,Table3[[#This Row],[إسم العميل]],'بيانات البيع'!B:B,Table3[[#This Row],[المنطقة]],'بيانات البيع'!C:C,Table3[[#This Row],[المحافظة]]) -> 1 | E140: =SUMIFS('بيانات البيع'!E:E,'بيانات البيع'!A:A,Table3[[#This Row],[إسم العميل]],'بيانات البيع'!B:B,Table3[[#This Row],[المنطقة]],'بيانات البيع'!C:C,Table3[[#This Row],[المحافظة]]) -> 200
A141: عميل 140 | B141: القصر العينى | C141: القاهرة | D141: =COUNTIFS('بيانات البيع'!A:A,Table3[[#This Row],[إسم العميل]],'بيانات البيع'!B:B,Table3[[#This Row],[المنطقة]],'بيانات البيع'!C:C,Table3[[#This Row],[المحافظة]]) -> 1 | E141: =SUMIFS('بيانات البيع'!E:E,'بيانات البيع'!A:A,Table3[[#This Row],[إسم العميل]],'بيانات البيع'!B:B,Table3[[#This Row],[المنطقة]],'بيانات البيع'!C:C,Table3[[#This Row],[المحافظة]]) -> 200
A142: عميل 141 | B142: المنوفية | C142: المنوفية | D142: =COUNTIFS('بيانات البيع'!A:A,Table3[[#This Row],[إسم العميل]],'بيانات البيع'!B:B,Table3[[#This Row],[المنطقة]],'بيانات البيع'!C:C,Table3[[#This Row],[المحافظة]]) -> 0 | E142: =SUMIFS('بيانات البيع'!E:E,'بيانات البيع'!A:A,Table3[[#This Row],[إسم العميل]],'بيانات البيع'!B:B,Table3[[#This Row],[المنطقة]],'بيانات البيع'!C:C,Table3[[#This Row],[المحافظة]]) -> 0
A143: عميل 142 | B143: المنوفية | C143: المنوفية | D143: =COUNTIFS('بيانات البيع'!A:A,Table3[[#This Row],[إسم العميل]],'بيانات البيع'!B:B,Table3[[#This Row],[المنطقة]],'بيانات البيع'!C:C,Table3[[#This Row],[المحافظة]]) -> 0 | E143: =SUMIFS('بيانات البيع'!E:E,'بيانات البيع'!A:A,Table3[[#This Row],[إسم العميل]],'بيانات البيع'!B:B,Table3[[#This Row],[المنطقة]],'بيانات البيع'!C:C,Table3[[#This Row],[المحافظة]]) -> 0
A144: عميل 143 | B144: بنى سويف | C144: بنى سويف | D144: =COUNTIFS('بيانات البيع'!A:A,Table3[[#This Row],[إسم العميل]],'بيانات البيع'!B:B,Table3[[#This Row],[المنطقة]],'بيانات البيع'!C:C,Table3[[#This Row],[المحافظة]]) -> 0 | E144: =SUMIFS('بيانات البيع'!E:E,'بيانات البيع'!A:A,Table3[[#This Row],[إسم العميل]],'بيانات البيع'!B:B,Table3[[#This Row],[المنطقة]],'بيانات البيع'!C:C,Table3[[#This Row],[المحافظة]]) -> 0
A145: عميل 144 | B145: العمرانية | C145: الجيزة | D145: =COUNTIFS('بيانات البيع'!A:A,Table3[[#This Row],[إسم العميل]],'بيانات البيع'!B:B,Table3[[#This Row],[المنطقة]],'بيانات البيع'!C:C,Table3[[#This Row],[المحافظة]]) -> 0 | E145: =SUMIFS('بيانات البيع'!E:E,'بيانات البيع'!A:A,Table3[[#This Row],[إسم العميل]],'بيانات البيع'!B:B,Table3[[#This Row],[المنطقة]],'بيانات البيع'!C:C,Table3[[#This Row],[المحافظة]]) -> 0
A146: عميل 145 | B146: المنصورة | C146: الدقهلية | D146: =COUNTIFS('بيانات البيع'!A:A,Table3[[#This Row],[إسم العميل]],'بيانات البيع'!B:B,Table3[[#This Row],[المنطقة]],'بيانات البيع'!C:C,Table3[[#This Row],[المحافظة]]) -> 0 | E146: =SUMIFS('بيانات البيع'!E:E,'بيانات البيع'!A:A,Table3[[#This Row],[إسم العميل]],'بيانات البيع'!B:B,Table3[[#This Row],[المنطقة]],'بيانات البيع'!C:C,Table3[[#This Row],[المحافظة]]) -> 0
A147: عميل 146 | B147: العاشر من رمضان | C147: القليوبية | D147: =COUNTIFS('بيانات البيع'!A:A,Table3[[#This Row],[إسم العميل]],'بيانات البيع'!B:B,Table3[[#This Row],[المنطقة]],'بيانات البيع'!C:C,Table3[[#This Row],[المحافظة]]) -> 0 | E147: =SUMIFS('بيانات البيع'!E:E,'بيانات البيع'!A:A,Table3[[#This Row],[إسم العميل]],'بيانات البيع'!B:B,Table3[[#This Row],[المنطقة]],'بيانات البيع'!C:C,Table3[[#This Row],[المحافظة]]) -> 0
A148: عميل 147 | B148: سوهاج | C148: سوهاج | D148: =COUNTIFS('بيانات البيع'!A:A,Table3[[#This Row],[إسم العميل]],'بيانات البيع'!B:B,Table3[[#This Row],[المنطقة]],'بيانات البيع'!C:C,Table3[[#This Row],[المحافظة]]) -> 0 | E148: =SUMIFS('بيانات البيع'!E:E,'بيانات البيع'!A:A,Table3[[#This Row],[إسم العميل]],'بيانات البيع'!B:B,Table3[[#This Row],[المنطقة]],'بيانات البيع'!C:C,Table3[[#This Row],[المحافظة]]) -> 0
A149: عميل 148 | B149: القصر العينى | C149: القاهرة | D149: =COUNTIFS('بيانات البيع'!A:A,Table3[[#This Row],[إسم العميل]],'بيانات البيع'!B:B,Table3[[#This Row],[المنطقة]],'بيانات البيع'!C:C,Table3[[#This Row],[المحافظة]]) -> 1 | E149: =SUMIFS('بيانات البيع'!E:E,'بيانات البيع'!A:A,Table3[[#This Row],[إسم العميل]],'بيانات البيع'!B:B,Table3[[#This Row],[المنطقة]],'بيانات البيع'!C:C,Table3[[#This Row],[المحافظة]]) -> 270
A150: عميل 149 | B150: مساكن الشروق | C150: القاهرة | D150: =COUNTIFS('بيانات البيع'!A:A,Table3[[#This Row],[إسم العميل]],'بيانات البيع'!B:B,Table3[[#This Row],[المنطقة]],'بيانات البيع'!C:C,Table3[[#This Row],[المحافظة]]) -> 0 | E150: =SUMIFS('بيانات البيع'!E:E,'بيانات البيع'!A:A,Table3[[#This Row],[إسم العميل]],'بيانات البيع'!B:B,Table3[[#This Row],[المنطقة]],'بيانات البيع'!C:C,Table3[[#This Row],[المحافظة]]) -> 0
A151: عميل 150 | B151: شبرا مصر | C151: القاهرة | D151: =COUNTIFS('بيانات البيع'!A:A,Table3[[#This Row],[إسم العميل]],'بيانات البيع'!B:B,Table3[[#This Row],[المنطقة]],'بيانات البيع'!C:C,Table3[[#This Row],[المحافظة]]) -> 0 | E151: =SUMIFS('بيانات البيع'!E:E,'بيانات البيع'!A:A,Table3[[#This Row],[إسم العميل]],'بيانات البيع'!B:B,Table3[[#This Row],[المنطقة]],'بيانات البيع'!C:C,Table3[[#This Row],[المحافظة]]) -> 0
A152: عميل 151 | B152: الزقازيق | C152: الشرقية | D152: =COUNTIFS('بيانات البيع'!A:A,Table3[[#This Row],[إسم العميل]],'بيانات البيع'!B:B,Table3[[#This Row],[المنطقة]],'بيانات البيع'!C:C,Table3[[#This Row],[المحافظة]]) -> 0 | E152: =SUMIFS('بيانات البيع'!E:E,'بيانات البيع'!A:A,Table3[[#This Row],[إسم العميل]],'بيانات البيع'!B:B,Table3[[#This Row],[المنطقة]],'بيانات البيع'!C:C,Table3[[#This Row],[المحافظة]]) -> 0
A153: عميل 152 | B153: مدينة نصر | C153: القاهرة | D153: =COUNTIFS('بيانات البيع'!A:A,Table3[[#This Row],[إسم العميل]],'بيانات البيع'!B:B,Table3[[#This Row],[المنطقة]],'بيانات البيع'!C:C,Table3[[#This Row],[المحافظة]]) -> 0 | E153: =SUMIFS('بيانات البيع'!E:E,'بيانات البيع'!A:A,Table3[[#This Row],[إسم العميل]],'بيانات البيع'!B:B,Table3[[#This Row],[المنطقة]],'بيانات البيع'!C:C,Table3[[#This Row],[المحافظة]]) -> 0
A154: عميل 153 | B154: التجمع الخامس | C154: القاهرة | D154: =COUNTIFS('بيانات البيع'!A:A,Table3[[#This Row],[إسم العميل]],'بيانات البيع'!B:B,Table3[[#This Row],[المنطقة]],'بيانات البيع'!C:C,Table3[[#This Row],[المحافظة]]) -> 0 | E154: =SUMIFS('بيانات البيع'!E:E,'بيانات البيع'!A:A,Table3[[#This Row],[إسم العميل]],'بيانات البيع'!B:B,Table3[[#This Row],[المنطقة]],'بيانات البيع'!C:C,Table3[[#This Row],[المحافظة]]) -> 0
A155: عميل 154 | B155: وسط البلد | C155: القاهرة | D155: =COUNTIFS('بيانات البيع'!A:A,Table3[[#This Row],[إسم العميل]],'بيانات البيع'!B:B,Table3[[#This Row],[المنطقة]],'بيانات البيع'!C:C,Table3[[#This Row],[المحافظة]]) -> 0 | E155: =SUMIFS('بيانات البيع'!E:E,'بيانات البيع'!A:A,Table3[[#This Row],[إسم العميل]],'بيانات البيع'!B:B,Table3[[#This Row],[المنطقة]],'بيانات البيع'!C:C,Table3[[#This Row],[المحافظة]]) -> 0
A156: عميل 155 | B156: الأقصر | C156: الأقصر | D156: =COUNTIFS('بيانات البيع'!A:A,Table3[[#This Row],[إسم العميل]],'بيانات البيع'!B:B,Table3[[#This Row],[المنطقة]],'بيانات البيع'!C:C,Table3[[#This Row],[المحافظة]]) -> 0 | E156: =SUMIFS('بيانات البيع'!E:E,'بيانات البيع'!A:A,Table3[[#This Row],[إسم العميل]],'بيانات البيع'!B:B,Table3[[#This Row],[المنطقة]],'بيانات البيع'!C:C,Table3[[#This Row],[المحافظة]]) -> 0
A157: عميل 156 | B157: الجيزة | C157: الجيزة | D157: =COUNTIFS('بيانات البيع'!A:A,Table3[[#This Row],[إسم العميل]],'بيانات البيع'!B:B,Table3[[#This Row],[المنطقة]],'بيانات البيع'!C:C,Table3[[#This Row],[المحافظة]]) -> 0 | E157: =SUMIFS('بيانات البيع'!E:E,'بيانات البيع'!A:A,Table3[[#This Row],[إسم العميل]],'بيانات البيع'!B:B,Table3[[#This Row],[المنطقة]],'بيانات البيع'!C:C,Table3[[#This Row],[المحافظة]]) -> 0
A158: عميل 157 | B158: الجمالية | C158: القاهرة | D158: =COUNTIFS('بيانات البيع'!A:A,Table3[[#This Row],[إسم العميل]],'بيانات البيع'!B:B,Table3[[#This Row],[المنطقة]],'بيانات البيع'!C:C,Table3[[#This Row],[المحافظة]]) -> 0 | E158: =SUMIFS('بيانات البيع'!E:E,'بيانات البيع'!A:A,Table3[[#This Row],[إسم العميل]],'بيانات البيع'!B:B,Table3[[#This Row],[المنطقة]],'بيانات البيع'!C:C,Table3[[#This Row],[المحافظة]]) -> 0
A159: عميل 158 | B159: القصر العينى | C159: القاهرة | D159: =COUNTIFS('بيانات البيع'!A:A,Table3[[#This Row],[إسم العميل]],'بيانات البيع'!B:B,Table3[[#This Row],[المنطقة]],'بيانات البيع'!C:C,Table3[[#This Row],[المحافظة]]) -> 0 | E159: =SUMIFS('بيانات البيع'!E:E,'بيانات البيع'!A:A,Table3[[#This Row],[إسم العميل]],'بيانات البيع'!B:B,Table3[[#This Row],[المنطقة]],'بيانات البيع'!C:C,Table3[[#This Row],[المحافظة]]) -> 0
A160: عميل 159 | B160: القصر العينى | C160: القاهرة | D160: =COUNTIFS('بيانات البيع'!A:A,Table3[[#This Row],[إسم العميل]],'بيانات البيع'!B:B,Table3[[#This Row],[المنطقة]],'بيانات البيع'!C:C,Table3[[#This Row],[المحافظة]]) -> 0 | E160: =SUMIFS('بيانات البيع'!E:E,'بيانات البيع'!A:A,Table3[[#This Row],[إسم العميل]],'بيانات البيع'!B:B,Table3[[#This Row],[المنطقة]],'بيانات البيع'!C:C,Table3[[#This Row],[المحافظة]]) -> 0
A161: عميل 160 | B161: المعادى | C161: القاهرة | D161: =COUNTIFS('بيانات البيع'!A:A,Table3[[#This Row],[إسم العميل]],'بيانات البيع'!B:B,Table3[[#This Row],[المنطقة]],'بيانات البيع'!C:C,Table3[[#This Row],[المحافظة]]) -> 0 | E161: =SUMIFS('بيانات البيع'!E:E,'بيانات البيع'!A:A,Table3[[#This Row],[إسم العميل]],'بيانات البيع'!B:B,Table3[[#This Row],[المنطقة]],'بيانات البيع'!C:C,Table3[[#This Row],[المحافظة]]) -> 0
A162: عميل 161 | B162: القصر العينى | C162: القاهرة | D162: =COUNTIFS('بيانات البيع'!A:A,Table3[[#This Row],[إسم العميل]],'بيانات البيع'!B:B,Table3[[#This Row],[المنطقة]],'بيانات البيع'!C:C,Table3[[#This Row],[المحافظة]]) -> 1 | E162: =SUMIFS('بيانات البيع'!E:E,'بيانات البيع'!A:A,Table3[[#This Row],[إسم العميل]],'بيانات البيع'!B:B,Table3[[#This Row],[المنطقة]],'بيانات البيع'!C:C,Table3[[#This Row],[المحافظة]]) -> 250
A163: عميل 162 | B163: المطرية | C163: الجيزة | D163: =COUNTIFS('بيانات البيع'!A:A,Table3[[#This Row],[إسم العميل]],'بيانات البيع'!B:B,Table3[[#This Row],[المنطقة]],'بيانات البيع'!C:C,Table3[[#This Row],[المحافظة]]) -> 0 | E163: =SUMIFS('بيانات البيع'!E:E,'بيانات البيع'!A:A,Table3[[#This Row],[إسم العميل]],'بيانات البيع'!B:B,Table3[[#This Row],[المنطقة]],'بيانات البيع'!C:C,Table3[[#This Row],[المحافظة]]) -> 0
A164: عميل 163 | B164: القاهرة | C164: القاهرة | D164: =COUNTIFS('بيانات البيع'!A:A,Table3[[#This Row],[إسم العميل]],'بيانات البيع'!B:B,Table3[[#This Row],[المنطقة]],'بيانات البيع'!C:C,Table3[[#This Row],[المحافظة]]) -> 1 | E164: =SUMIFS('بيانات البيع'!E:E,'بيانات البيع'!A:A,Table3[[#This Row],[إسم العميل]],'بيانات البيع'!B:B,Table3[[#This Row],[المنطقة]],'بيانات البيع'!C:C,Table3[[#This Row],[المحافظة]]) -> 70
A165: عميل 164 | B165: القصر العينى | C165: القاهرة | D165: =COUNTIFS('بيانات البيع'!A:A,Table3[[#This Row],[إسم العميل]],'بيانات البيع'!B:B,Table3[[#This Row],[المنطقة]],'بيانات البيع'!C:C,Table3[[#This Row],[المحافظة]]) -> 0 | E165: =SUMIFS('بيانات البيع'!E:E,'بيانات البيع'!A:A,Table3[[#This Row],[إسم العميل]],'بيانات البيع'!B:B,Table3[[#This Row],[المنطقة]],'بيانات البيع'!C:C,Table3[[#This Row],[المحافظة]]) -> 0
A166: عميل 165 | B166: الزقازيق | C166: الشرقية | D166: =COUNTIFS('بيانات البيع'!A:A,Table3[[#This Row],[إسم العميل]],'بيانات البيع'!B:B,Table3[[#This Row],[المنطقة]],'بيانات البيع'!C:C,Table3[[#This Row],[المحافظة]]) -> 0 | E166: =SUMIFS('بيانات البيع'!E:E,'بيانات البيع'!A:A,Table3[[#This Row],[إسم العميل]],'بيانات البيع'!B:B,Table3[[#This Row],[المنطقة]],'بيانات البيع'!C:C,Table3[[#This Row],[المحافظة]]) -> 0
A167: عميل 166 | B167: امبابة | C167: الجيزة | D167: =COUNTIFS('بيانات البيع'!A:A,Table3[[#This Row],[إسم العميل]],'بيانات البيع'!B:B,Table3[[#This Row],[المنطقة]],'بيانات البيع'!C:C,Table3[[#This Row],[المحافظة]]) -> 0 | E167: =SUMIFS('بيانات البيع'!E:E,'بيانات البيع'!A:A,Table3[[#This Row],[إسم العميل]],'بيانات البيع'!B:B,Table3[[#This Row],[المنطقة]],'بيانات البيع'!C:C,Table3[[#This Row],[المحافظة]]) -> 0
A168: عميل 167 | B168: المهندسين | C168: الجيزة | D168: =COUNTIFS('بيانات البيع'!A:A,Table3[[#This Row],[إسم العميل]],'بيانات البيع'!B:B,Table3[[#This Row],[المنطقة]],'بيانات البيع'!C:C,Table3[[#This Row],[المحافظة]]) -> 0 | E168: =SUMIFS('بيانات البيع'!E:E,'بيانات البيع'!A:A,Table3[[#This Row],[إسم العميل]],'بيانات البيع'!B:B,Table3[[#This Row],[المنطقة]],'بيانات البيع'!C:C,Table3[[#This Row],[المحافظة]]) -> 0
A169: عميل 168 | B169: العاشر من رمضان | C169: القليوبية | D169: =COUNTIFS('بيانات البيع'!A:A,Table3[[#This Row],[إسم العميل]],'بيانات البيع'!B:B,Table3[[#This Row],[المنطقة]],'بيانات البيع'!C:C,Table3[[#This Row],[المحافظة]]) -> 0 | E169: =SUMIFS('بيانات البيع'!E:E,'بيانات البيع'!A:A,Table3[[#This Row],[إسم العميل]],'بيانات البيع'!B:B,Table3[[#This Row],[المنطقة]],'بيانات البيع'!C:C,Table3[[#This Row],[المحافظة]]) -> 0
A170: عميل 169 | B170: وسط البلد | C170: القاهرة | D170: =COUNTIFS('بيانات البيع'!A:A,Table3[[#This Row],[إسم العميل]],'بيانات البيع'!B:B,Table3[[#This Row],[المنطقة]],'بيانات البيع'!C:C,Table3[[#This Row],[المحافظة]]) -> 0 | E170: =SUMIFS('بيانات البيع'!E:E,'بيانات البيع'!A:A,Table3[[#This Row],[إسم العميل]],'بيانات البيع'!B:B,Table3[[#This Row],[المنطقة]],'بيانات البيع'!C:C,Table3[[#This Row],[المحافظة]]) -> 0
A171: عميل 170 | B171: قليوب | C171: القليوبية | D171: =COUNTIFS('بيانات البيع'!A:A,Table3[[#This Row],[إسم العميل]],'بيانات البيع'!B:B,Table3[[#This Row],[المنطقة]],'بيانات البيع'!C:C,Table3[[#This Row],[المحافظة]]) -> 0 | E171: =SUMIFS('بيانات البيع'!E:E,'بيانات البيع'!A:A,Table3[[#This Row],[إسم العميل]],'بيانات البيع'!B:B,Table3[[#This Row],[المنطقة]],'بيانات البيع'!C:C,Table3[[#This Row],[المحافظة]]) -> 0
A172: عميل 171 | B172: القصر العينى | C172: القاهرة | D172: =COUNTIFS('بيانات البيع'!A:A,Table3[[#This Row],[إسم العميل]],'بيانات البيع'!B:B,Table3[[#This Row],[المنطقة]],'بيانات البيع'!C:C,Table3[[#This Row],[المحافظة]]) -> 0 | E172: =SUMIFS('بيانات البيع'!E:E,'بيانات البيع'!A:A,Table3[[#This Row],[إسم العميل]],'بيانات البيع'!B:B,Table3[[#This Row],[المنطقة]],'بيانات البيع'!C:C,Table3[[#This Row],[المحافظة]]) -> 0
A173: عميل 172 | B173: حلوان | C173: القاهرة | D173: =COUNTIFS('بيانات البيع'!A:A,Table3[[#This Row],[إسم العميل]],'بيانات البيع'!B:B,Table3[[#This Row],[المنطقة]],'بيانات البيع'!C:C,Table3[[#This Row],[المحافظة]]) -> 0 | E173: =SUMIFS('بيانات البيع'!E:E,'بيانات البيع'!A:A,Table3[[#This Row],[إسم العميل]],'بيانات البيع'!B:B,Table3[[#This Row],[المنطقة]],'بيانات البيع'!C:C,Table3[[#This Row],[المحافظة]]) -> 0
A174: عميل 173 | B174: المعادى | C174: القاهرة | D174: =COUNTIFS('بيانات البيع'!A:A,Table3[[#This Row],[إسم العميل]],'بيانات البيع'!B:B,Table3[[#This Row],[المنطقة]],'بيانات البيع'!C:C,Table3[[#This Row],[المحافظة]]) -> 0 | E174: =SUMIFS('بيانات البيع'!E:E,'بيانات البيع'!A:A,Table3[[#This Row],[إسم العميل]],'بيانات البيع'!B:B,Table3[[#This Row],[المنطقة]],'بيانات البيع'!C:C,Table3[[#This Row],[المحافظة]]) -> 0
A175: عميل 174 | B175: القصر العينى | C175: القاهرة | D175: =COUNTIFS('بيانات البيع'!A:A,Table3[[#This Row],[إسم العميل]],'بيانات البيع'!B:B,Table3[[#This Row],[المنطقة]],'بيانات البيع'!C:C,Table3[[#This Row],[المحافظة]]) -> 1 | E175: =SUMIFS('بيانات البيع'!E:E,'بيانات البيع'!A:A,Table3[[#This Row],[إسم العميل]],'بيانات البيع'!B:B,Table3[[#This Row],[المنطقة]],'بيانات البيع'!C:C,Table3[[#This Row],[المحافظة]]) -> 855
A176: عميل 175 | B176: القاهرة | C176: القاهرة | D176: =COUNTIFS('بيانات البيع'!A:A,Table3[[#This Row],[إسم العميل]],'بيانات البيع'!B:B,Table3[[#This Row],[المنطقة]],'بيانات البيع'!C:C,Table3[[#This Row],[المحافظة]]) -> 0 | E176: =SUMIFS('بيانات البيع'!E:E,'بيانات البيع'!A:A,Table3[[#This Row],[إسم العميل]],'بيانات البيع'!B:B,Table3[[#This Row],[المنطقة]],'بيانات البيع'!C:C,Table3[[#This Row],[المحافظة]]) -> 0
A177: عميل 176 | B177: البحيرة | C177: البحيرة | D177: =COUNTIFS('بيانات البيع'!A:A,Table3[[#This Row],[إسم العميل]],'بيانات البيع'!B:B,Table3[[#This Row],[المنطقة]],'بيانات البيع'!C:C,Table3[[#This Row],[المحافظة]]) -> 0 | E177: =SUMIFS('بيانات البيع'!E:E,'بيانات البيع'!A:A,Table3[[#This Row],[إسم العميل]],'بيانات البيع'!B:B,Table3[[#This Row],[المنطقة]],'بيانات البيع'!C:C,Table3[[#This Row],[المحافظة]]) -> 0
A178: عميل 177 | B178: القصر العينى | C178: القاهرة | D178: =COUNTIFS('بيانات البيع'!A:A,Table3[[#This Row],[إسم العميل]],'بيانات البيع'!B:B,Table3[[#This Row],[المنطقة]],'بيانات البيع'!C:C,Table3[[#This Row],[المحافظة]]) -> 1 | E178: =SUMIFS('بيانات البيع'!E:E,'بيانات البيع'!A:A,Table3[[#This Row],[إسم العميل]],'بيانات البيع'!B:B,Table3[[#This Row],[المنطقة]],'بيانات البيع'!C:C,Table3[[#This Row],[المحافظة]]) -> 200
A179: عميل 178 | B179: القصر العينى | C179: القاهرة | D179: =COUNTIFS('بيانات البيع'!A:A,Table3[[#This Row],[إسم العميل]],'بيانات البيع'!B:B,Table3[[#This Row],[المنطقة]],'بيانات البيع'!C:C,Table3[[#This Row],[المحافظة]]) -> 0 | E179: =SUMIFS('بيانات البيع'!E:E,'بيانات البيع'!A:A,Table3[[#This Row],[إسم العميل]],'بيانات البيع'!B:B,Table3[[#This Row],[المنطقة]],'بيانات البيع'!C:C,Table3[[#This Row],[المحافظة]]) -> 0
A180: عميل 179 | B180: القصر العينى | C180: القاهرة | D180: =COUNTIFS('بيانات البيع'!A:A,Table3[[#This Row],[إسم العميل]],'بيانات البيع'!B:B,Table3[[#This Row],[المنطقة]],'بيانات البيع'!C:C,Table3[[#This Row],[المحافظة]]) -> 0 | E180: =SUMIFS('بيانات البيع'!E:E,'بيانات البيع'!A:A,Table3[[#This Row],[إسم العميل]],'بيانات البيع'!B:B,Table3[[#This Row],[المنطقة]],'بيانات البيع'!C:C,Table3[[#This Row],[المحافظة]]) -> 0
A181: عميل 180 | B181: مصر الجديدة | C181: القاهرة | D181: =COUNTIFS('بيانات البيع'!A:A,Table3[[#This Row],[إسم العميل]],'بيانات البيع'!B:B,Table3[[#This Row],[المنطقة]],'بيانات البيع'!C:C,Table3[[#This Row],[المحافظة]]) -> 0 | E181: =SUMIFS('بيانات البيع'!E:E,'بيانات البيع'!A:A,Table3[[#This Row],[إسم العميل]],'بيانات البيع'!B:B,Table3[[#This Row],[المنطقة]],'بيانات البيع'!C:C,Table3[[#This Row],[المحافظة]]) -> 0
A182: عميل 181 | B182: حلوان | C182: القاهرة | D182: =COUNTIFS('بيانات البيع'!A:A,Table3[[#This Row],[إسم العميل]],'بيانات البيع'!B:B,Table3[[#This Row],[المنطقة]],'بيانات البيع'!C:C,Table3[[#This Row],[المحافظة]]) -> 0 | E182: =SUMIFS('بيانات البيع'!E:E,'بيانات البيع'!A:A,Table3[[#This Row],[إسم العميل]],'بيانات البيع'!B:B,Table3[[#This Row],[المنطقة]],'بيانات البيع'!C:C,Table3[[#This Row],[المحافظة]]) -> 0
A183: عميل 182 | B183: القاهرة | C183: القاهرة | D183: =COUNTIFS('بيانات البيع'!A:A,Table3[[#This Row],[إسم العميل]],'بيانات البيع'!B:B,Table3[[#This Row],[المنطقة]],'بيانات البيع'!C:C,Table3[[#This Row],[المحافظة]]) -> 0 | E183: =SUMIFS('بيانات البيع'!E:E,'بيانات البيع'!A:A,Table3[[#This Row],[إسم العميل]],'بيانات البيع'!B:B,Table3[[#This Row],[المنطقة]],'بيانات البيع'!C:C,Table3[[#This Row],[المحافظة]]) -> 0
A184: عميل 183 | B184: القصر العينى | C184: القاهرة | D184: =COUNTIFS('بيانات البيع'!A:A,Table3[[#This Row],[إسم العميل]],'بيانات البيع'!B:B,Table3[[#This Row],[المنطقة]],'بيانات البيع'!C:C,Table3[[#This Row],[المحافظة]]) -> 1 | E184: =SUMIFS('بيانات البيع'!E:E,'بيانات البيع'!A:A,Table3[[#This Row],[إسم العميل]],'بيانات البيع'!B:B,Table3[[#This Row],[المنطقة]],'بيانات البيع'!C:C,Table3[[#This Row],[المحافظة]]) -> 2000
A185: عميل 184 | B185: شبرا الخمية | C185: القليوبية | D185: =COUNTIFS('بيانات البيع'!A:A,Table3[[#This Row],[إسم العميل]],'بيانات البيع'!B:B,Table3[[#This Row],[المنطقة]],'بيانات البيع'!C:C,Table3[[#This Row],[المحافظة]]) -> 0 | E185: =SUMIFS('بيانات البيع'!E:E,'بيانات البيع'!A:A,Table3[[#This Row],[إسم العميل]],'بيانات البيع'!B:B,Table3[[#This Row],[المنطقة]],'بيانات البيع'!C:C,Table3[[#This Row],[المحافظة]]) -> 0
A186: عميل 185 | B186: التجمع الخامس | C186: القاهرة | D186: =COUNTIFS('بيانات البيع'!A:A,Table3[[#This Row],[إسم العميل]],'بيانات البيع'!B:B,Table3[[#This Row],[المنطقة]],'بيانات البيع'!C:C,Table3[[#This Row],[المحافظة]]) -> 0 | E186: =SUMIFS('بيانات البيع'!E:E,'بيانات البيع'!A:A,Table3[[#This Row],[إسم العميل]],'بيانات البيع'!B:B,Table3[[#This Row],[المنطقة]],'بيانات البيع'!C:C,Table3[[#This Row],[المحافظة]]) -> 0
A187: عميل 186 | B187: القاهرة | C187: القاهرة | D187: =COUNTIFS('بيانات البيع'!A:A,Table3[[#This Row],[إسم العميل]],'بيانات البيع'!B:B,Table3[[#This Row],[المنطقة]],'بيانات البيع'!C:C,Table3[[#This Row],[المحافظة]]) -> 0 | E187: =SUMIFS('بيانات البيع'!E:E,'بيانات البيع'!A:A,Table3[[#This Row],[إسم العميل]],'بيانات البيع'!B:B,Table3[[#This Row],[المنطقة]],'بيانات البيع'!C:C,Table3[[#This Row],[المحافظة]]) -> 0
A188: عميل 187 | B188: شبرا مصر | C188: القاهرة | D188: =COUNTIFS('بيانات البيع'!A:A,Table3[[#This Row],[إسم العميل]],'بيانات البيع'!B:B,Table3[[#This Row],[المنطقة]],'بيانات البيع'!C:C,Table3[[#This Row],[المحافظة]]) -> 0 | E188: =SUMIFS('بيانات البيع'!E:E,'بيانات البيع'!A:A,Table3[[#This Row],[إسم العميل]],'بيانات البيع'!B:B,Table3[[#This Row],[المنطقة]],'بيانات البيع'!C:C,Table3[[#This Row],[المحافظة]]) -> 0
A189: عميل 188 | B189: كفر الشيخ | C189: كفر الشيخ | D189: =COUNTIFS('بيانات البيع'!A:A,Table3[[#This Row],[إسم العميل]],'بيانات البيع'!B:B,Table3[[#This Row],[المنطقة]],'بيانات البيع'!C:C,Table3[[#This Row],[المحافظة]]) -> 0 | E189: =SUMIFS('بيانات البيع'!E:E,'بيانات البيع'!A:A,Table3[[#This Row],[إسم العميل]],'بيانات البيع'!B:B,Table3[[#This Row],[المنطقة]],'بيانات البيع'!C:C,Table3[[#This Row],[المحافظة]]) -> 0
A190: عميل 189 | B190: الشيخ زايد | C190: القاهرة | D190: =COUNTIFS('بيانات البيع'!A:A,Table3[[#This Row],[إسم العميل]],'بيانات البيع'!B:B,Table3[[#This Row],[المنطقة]],'بيانات البيع'!C:C,Table3[[#This Row],[المحافظة]]) -> 0 | E190: =SUMIFS('بيانات البيع'!E:E,'بيانات البيع'!A:A,Table3[[#This Row],[إسم العميل]],'بيانات البيع'!B:B,Table3[[#This Row],[المنطقة]],'بيانات البيع'!C:C,Table3[[#This Row],[المحافظة]]) -> 0
A191: عميل 190 | B191: الفيوم | C191: الفيوم | D191: =COUNTIFS('بيانات البيع'!A:A,Table3[[#This Row],[إسم العميل]],'بيانات البيع'!B:B,Table3[[#This Row],[المنطقة]],'بيانات البيع'!C:C,Table3[[#This Row],[المحافظة]]) -> 0 | E191: =SUMIFS('بيانات البيع'!E:E,'بيانات البيع'!A:A,Table3[[#This Row],[إسم العميل]],'بيانات البيع'!B:B,Table3[[#This Row],[المنطقة]],'بيانات البيع'!C:C,Table3[[#This Row],[المحافظة]]) -> 0
A192: عميل 191 | B192: المعادى | C192: القاهرة | D192: =COUNTIFS('بيانات البيع'!A:A,Table3[[#This Row],[إسم العميل]],'بيانات البيع'!B:B,Table3[[#This Row],[المنطقة]],'بيانات البيع'!C:C,Table3[[#This Row],[المحافظة]]) -> 0 | E192: =SUMIFS('بيانات البيع'!E:E,'بيانات البيع'!A:A,Table3[[#This Row],[إسم العميل]],'بيانات البيع'!B:B,Table3[[#This Row],[المنطقة]],'بيانات البيع'!C:C,Table3[[#This Row],[المحافظة]]) -> 0
A193: عميل 192 | B193: مدينة السادات | C193: المنوفية | D193: =COUNTIFS('بيانات البيع'!A:A,Table3[[#This Row],[إسم العميل]],'بيانات البيع'!B:B,Table3[[#This Row],[المنطقة]],'بيانات البيع'!C:C,Table3[[#This Row],[المحافظة]]) -> 0 | E193: =SUMIFS('بيانات البيع'!E:E,'بيانات البيع'!A:A,Table3[[#This Row],[إسم العميل]],'بيانات البيع'!B:B,Table3[[#This Row],[المنطقة]],'بيانات البيع'!C:C,Table3[[#This Row],[المحافظة]]) -> 0
A194: عميل 193 | B194: مدينة نصر | C194: القاهرة | D194: =COUNTIFS('بيانات البيع'!A:A,Table3[[#This Row],[إسم العميل]],'بيانات البيع'!B:B,Table3[[#This Row],[المنطقة]],'بيانات البيع'!C:C,Table3[[#This Row],[المحافظة]]) -> 0 | E194: =SUMIFS('بيانات البيع'!E:E,'بيانات البيع'!A:A,Table3[[#This Row],[إسم العميل]],'بيانات البيع'!B:B,Table3[[#This Row],[المنطقة]],'بيانات البيع'!C:C,Table3[[#This Row],[المحافظة]]) -> 0
A195: عميل 194 | B195: زهراء المعادى | C195: القاهرة | D195: =COUNTIFS('بيانات البيع'!A:A,Table3[[#This Row],[إسم العميل]],'بيانات البيع'!B:B,Table3[[#This Row],[المنطقة]],'بيانات البيع'!C:C,Table3[[#This Row],[المحافظة]]) -> 0 | E195: =SUMIFS('بيانات البيع'!E:E,'بيانات البيع'!A:A,Table3[[#This Row],[إسم العميل]],'بيانات البيع'!B:B,Table3[[#This Row],[المنطقة]],'بيانات البيع'!C:C,Table3[[#This Row],[المحافظة]]) -> 0
A196: عميل 195 | B196: سوهاج | C196: سوهاج | D196: =COUNTIFS('بيانات البيع'!A:A,Table3[[#This Row],[إسم العميل]],'بيانات البيع'!B:B,Table3[[#This Row],[المنطقة]],'بيانات البيع'!C:C,Table3[[#This Row],[المحافظة]]) -> 0 | E196: =SUMIFS('بيانات البيع'!E:E,'بيانات البيع'!A:A,Table3[[#This Row],[إسم العميل]],'بيانات البيع'!B:B,Table3[[#This Row],[المنطقة]],'بيانات البيع'!C:C,Table3[[#This Row],[المحافظة]]) -> 0
A197: عميل 196 | B197: المعادى | C197: القاهرة | D197: =COUNTIFS('بيانات البيع'!A:A,Table3[[#This Row],[إسم العميل]],'بيانات البيع'!B:B,Table3[[#This Row],[المنطقة]],'بيانات البيع'!C:C,Table3[[#This Row],[المحافظة]]) -> 0 | E197: =SUMIFS('بيانات البيع'!E:E,'بيانات البيع'!A:A,Table3[[#This Row],[إسم العميل]],'بيانات البيع'!B:B,Table3[[#This Row],[المنطقة]],'بيانات البيع'!C:C,Table3[[#This Row],[المحافظة]]) -> 0
A198: عميل 197 | B198: حدئق الاهرام | C198: القاهرة | D198: =COUNTIFS('بيانات البيع'!A:A,Table3[[#This Row],[إسم العميل]],'بيانات البيع'!B:B,Table3[[#This Row],[المنطقة]],'بيانات البيع'!C:C,Table3[[#This Row],[المحافظة]]) -> 0 | E198: =SUMIFS('بيانات البيع'!E:E,'بيانات البيع'!A:A,Table3[[#This Row],[إسم العميل]],'بيانات البيع'!B:B,Table3[[#This Row],[المنطقة]],'بيانات البيع'!C:C,Table3[[#This Row],[المحافظة]]) -> 0
A199: عميل 198 | B199: المقطم | C199: القاهرة | D199: =COUNTIFS('بيانات البيع'!A:A,Table3[[#This Row],[إسم العميل]],'بيانات البيع'!B:B,Table3[[#This Row],[المنطقة]],'بيانات البيع'!C:C,Table3[[#This Row],[المحافظة]]) -> 0 | E199: =SUMIFS('بيانات البيع'!E:E,'بيانات البيع'!A:A,Table3[[#This Row],[إسم العميل]],'بيانات البيع'!B:B,Table3[[#This Row],[المنطقة]],'بيانات البيع'!C:C,Table3[[#This Row],[المحافظة]]) -> 0
A200: عميل 199 | B200: الأقصر | C200: الأقصر | D200: =COUNTIFS('بيانات البيع'!A:A,Table3[[#This Row],[إسم العميل]],'بيانات البيع'!B:B,Table3[[#This Row],[المنطقة]],'بيانات البيع'!C:C,Table3[[#This Row],[المحافظة]]) -> 0 | E200: =SUMIFS('بيانات البيع'!E:E,'بيانات البيع'!A:A,Table3[[#This Row],[إسم العميل]],'بيانات البيع'!B:B,Table3[[#This Row],[المنطقة]],'بيانات البيع'!C:C,Table3[[#This Row],[المحافظة]]) -> 0
... 97 more rows
